Workbook

Sheet INGRESO DE DATOS
A11: Cotización de Seguro Médico - Bupa Global Health Plans
H12: Última actualización del archivo: 10 octubre 2022
A13: 1. INGRESE LOS DATOS DEL PROPUESTO ASEGURADO :
J14: Diligenciar, solo si aplica otros dependientes, incluir edad
B15: Nombre del asegurado titular : | D15: JUAN VIDAL | J15: Otros dependientes: | K15: ID | L15: Edad
K16: 1 | M16: =IF(ISBLANK(L16),TRUE,AND(L16 >= 0,L16 <= 24,E25)) -> TRUE
B17: Número de adultos en la póliza : | F17: Número de hijos en la póliza : | K17: 2 | M17: =IF(ISBLANK(L17),TRUE,AND(L17 >= 0,L17 <= 24,E26)) -> TRUE
K18: 3 | M18: =IF(ISBLANK(L18),TRUE,AND(L18 >= 0,L18 <= 24,E27)) -> TRUE
B19: Edad del asegurado titular : | E19: =AND(D19 >= 18,D19 <= 45,E25) -> FALSE | F19: Edad del (de la) cónyuge : | I19: =IF(D17>1,AND(H19 >= 18,H19 <= 45,E25),TRUE) -> TRUE | K19: 4 | M19: =IF(ISBLANK(L19),TRUE,AND(L19 >= 0,L19 <= 24,E28)) -> TRUE
K20: 5 | M20: =IF(ISBLANK(L20),TRUE,AND(L20 >= 0,L20 <= 24,E29)) -> TRUE
C21: Aplica descuento especial del 10%: | E21: FALSE | F21: *Descuento especial aplica para todos los productos globales a excepción de Select PE. *Descuento por pago fraccionado aplica para todos los productos globales. *Descuento por promo especial, aplica para todos los productos globales a excepción de Select PE.
C23: Aplica descuento por pago fraccionado: | E23: FALSE
B25: Promo especial +10% adicional (Valido para asegurados entre los 18 y 45 años) | E25: FALSE
D26: =1-(IF(E21,0.1,0)+IF(AND(E19,I19,M16,M17,M18,M19,M20),0.1,0)) -> 1 | E26: =1-IF(E21,0.1,0) -> 1
A27: 2. INGRESE EL NOMBRE DE LA AGENCIA ASESORA :
B29: Agencia / Agente : | D29: Nombre del Agente
A31: 3. ESCOJA EL PRODUCTO PARA VISUALIZAR LA COTIZACION RESPECTIVA :

Sheet Global Major Medical Health Pla
M28: FALSE
B29: Nombre del asegurado titular : | C29: =+'INGRESO DE DATOS'!$D$15 -> JUAN VIDAL | K29: Deducibles | M29: PLAN 1 | N29: PLAN 2
K30: Dentro del país de residencia | M30: 10000 | N30: 20000
B31: Agencia / Agente : | C31: =+'INGRESO DE DATOS'!$D$29 -> Nombre del Agente | K31: Fuera del país de residencia | M31: 10000 | N31: 20000
D33: Número de adultos en la póliza : | F33: =+'INGRESO DE DATOS'!$D$17 -> 0 | H33: Edad del asegurado titular : | I33: =+'INGRESO DE DATOS'!$D$19 -> 0 | K33: TARIFAS ANUALES
K34: Prima del asegurado titular : | M34: =VLOOKUP($I$33,Tablas!$A$905:$G$971,3,TRUE)*'INGRESO DE DATOS'!$D$26+(Tablas!$Q$2) ->  | N34: =VLOOKUP($I$33,Tablas!$A$905:$G$971,4,TRUE)*'INGRESO DE DATOS'!$D$26+(Tablas!$Q$2) -> 
D35: Número de hijos en la póliza : | F35: =+'INGRESO DE DATOS'!$H$17 -> 0 | H35: Edad del (de la) cónyuge : | I35: =+'INGRESO DE DATOS'!$H$19 -> 0 | K35: Prima del (de la) cónyuge: | M35: =(IF($F$33=1,0,(VLOOKUP($I$35,Tablas!$A$905:$G$971,3,TRUE))))*'INGRESO DE DATOS'!$D$26+(IF($F$33=1,0,(Tablas!$Q$2))) ->  | N35: =(IF($F$33=1,0,(VLOOKUP($I$35,Tablas!$A$905:$G$971,4,TRUE))))*'INGRESO DE DATOS'!$D$26+(IF($F$33=1,0,(Tablas!$Q$2))) -> 
K36: Prima del (de los) Hijo (s) : | M36: =(IF($F$35=0,0,(VLOOKUP($F$35,Tablas!$A$972:$G$974,3,TRUE))))*'INGRESO DE DATOS'!$D$26 -> 0 | N36: =(IF($F$35=0,0,(VLOOKUP($F$35,Tablas!$A$972:$G$974,4,TRUE))))*'INGRESO DE DATOS'!$D$26 -> 0
C37: FECHA DE COTIZACION : | E37: =NOW() -> 2023-10-26T13:25:47.840 | K37: Total otros dependientes | M37: =Tablas!Q911*'INGRESO DE DATOS'!$D$26 -> 0 | N37: =Tablas!R911*'INGRESO DE DATOS'!$D$26 -> 0
K38: TOTAL PRIMA NETA : | M38: =SUM(M34:M37) ->  | N38: =SUM(N34:N37) -> 
K39: Costo administrativo anual : | M39: 937.5 | N39: 937.5
K40: IVA (16%) : | M40: =+M38*16% ->  | N40: =+N38*16% -> 
K41: =IF('INGRESO DE DATOS'!$D$26=0.8,"Costo total, (-20% de descuento)",IF('INGRESO DE DATOS'!$D$26=0.9,"Costo total, (-10% de descuento)","Gran total anual")) -> Gran total anual | M41: =SUM(M38:M40) + M39*0.16 ->  | N41: =SUM(N38:N40) + N39*0.16 -> 
K43: TARIFAS SEMESTRALES
K44: Prima del asegurado titular : | M44: =M34*(1+Tablas!$K$4) ->  | N44: =N34*(1+Tablas!$K$4) -> 
K45: Prima del (de la) cónyuge: | M45: =M35*(1+Tablas!$K$4) ->  | N45: =N35*(1+Tablas!$K$4) -> 
K46: Prima del (de los) Hijo (s) : | M46: =M36*(1+Tablas!$K$4) -> 0 | N46: =N36*(1+Tablas!$K$4) -> 0
K47: =K37 -> Total otros dependientes | M47: =M37*(1+Tablas!$K$4) -> 0 | N47: =N37*(1+Tablas!$K$4) -> 0
K48: TOTAL PRIMA NETA : | M48: =SUM(M44:M47) ->  | N48: =SUM(N44:N47) -> 
K49: Costo administrativo anual : | M49: 937.5 | N49: 937.5
K50: IVA (16%) : | M50: =SUM(M48:M49)*16% ->  | N50: =SUM(N48:N49)*16% -> 
K51: TOTAL primera cuota : | M51: =((M48/2)+M49)*1.16 ->  | N51: =((N48/2)+N49)*1.16 -> 
K52: Valor segunda cuota : | M52: =M48/2*1.16 ->  | N52: =N48/2*1.16 -> 
K53: =K41 -> Gran total anual | M53: =M51+M52 ->  | N53: =N51+N52 -> 
K55: TARIFAS TRIMESTRALES
K56: Prima del asegurado titular : | M56: =M34*(1+Tablas!$K$3) ->  | N56: =N34*(1+Tablas!$K$3) -> 
K57: Prima del (de la) cónyuge: | M57: =M35*(1+Tablas!$K$3) ->  | N57: =N35*(1+Tablas!$K$3) -> 
K58: Prima del (de los) Hijo (s) : | M58: =M36*(1+Tablas!$K$3) -> 0 | N58: =N36*(1+Tablas!$K$3) -> 0
K59: =K47 -> Total otros dependientes | M59: =M37*(1+Tablas!$K$3) -> 0 | N59: =N37*(1+Tablas!$K$3) -> 0
K60: TOTAL PRIMA NETA : | M60: =SUM(M56:M59) ->  | N60: =SUM(N56:N59) -> 
K61: Costo administrativo anual : | M61: 937.5 | N61: 937.5
K62: IVA (16%) : | M62: =SUM(M60:M61)*16% ->  | N62: =SUM(N60:N61)*16% -> 
K63: TOTAL primera cuota : | M63: =((M60/4)+M61)*1.16 ->  | N63: =((N60/4)+N61)*1.16 -> 
K64: Valor cuota trimestral 2 a 4: | M64: =M60/4*1.16 ->  | N64: =N60/4*1.16 -> 
K65: =K53 -> Gran total anual | M65: =M63+(M64*3) ->  | N65: =N63+(N64*3) -> 
K67: TARIFAS MENSUALES
K68: Prima del asegurado titular : | M68: =M34*(1+Tablas!$K$2) ->  | N68: =N34*(1+Tablas!$K$2) -> 
B69: Tarifas validas a partir del 1 de marzo al 31 de diciembre del 2023. | K69: Prima del (de la) cónyuge: | M69: =M35*(1+Tablas!$K$2) ->  | N69: =N35*(1+Tablas!$K$2) -> 
B70: Promociones válidas al 31 de diciembre de 2023. | K70: Prima del (de los) Hijo (s) : | M70: =M36*(1+Tablas!$K$2) -> 0 | N70: =N36*(1+Tablas!$K$2) -> 0
B71: El 10% de descuento en productos Globales sobre prima neta será aplicable durante toda la vida de la póliza, siempre y cuando el asegurado no haga cambios en el plan y deducibles contratados. | K71: =K59 -> Total otros dependientes | M71: =M37*(1+Tablas!$K$2) -> 0 | N71: =N37*(1+Tablas!$K$2) -> 0
B72: 6 meses sin intereses sin cargo al agente para modalidad de pago anual durante el primer año póliza con tarjetas de crédito participantes: Afirme, Azteca, Bajío, Banjercito, Banorte, Banregio, BBVA, Citibanamex, Famsa, HSBC, Inbursa, Invex, IXE, Liverpool, Mifel, Multiva, Santander, Scotiabank, Sociedad de Facilidades Multirotativas y American Express. Promoción válida sólo para tarjetas emitidas en la República Mexicana. | K72: TOTAL PRIMA NETA : | M72: =SUM(M68:M71) ->  | N72: =SUM(N68:N71) -> 
B73: En caso de que el asegurado elija la promoción “Sin costo por pago fraccionado” no podrá optar por la promoción a meses sin intereses. | K73: Costo administrativo anual : | M73: 937.5 | N73: 937.5
B74: Las pólizas contratadas cuentan con limitaciones y exclusiones las cuáles pueden ser consultadas en www.bupasalud.com.mx Para más información, llámanos al 55 5202-1701 ext 4 o envíanos un correo a: ventasdirectas@bupa.com.mx | K74: IVA (16%) : | M74: =SUM(M72:M73)*16% ->  | N74: =SUM(N72:N73)*16% -> 
B75: La presente cotización es de carácter informativo, no constituye una solicitud de seguro y/o el monto de la prima definitiva y/o las condiciones de la misma y/o una oferta de aseguramiento en términos del artículo 5to de la Ley Sobre el Contrato de Seguro. La emisión de la póliza asícomo posibles cambios en la tarifa están sujetos a valoración del riesgo de acuerdo con las políticas de Suscripción de Bupa México y es susceptible de modificaciones, por lo que Bupa podrá aceptar o negar el aseguramiento del riesgo propuesto. | K75: TOTAL primera cuota : | M75: =((M72/12)+M73)*1.16 ->  | N75: =((N72/12)+N73)*1.16 -> 
K76: Valor cuota mensual 2 a 12 : | M76: =M72/12*1.16 ->  | N76: =N72/12*1.16 -> 
K77: =K65 -> Gran total anual | M77: =M75+(M76*11) ->  | N77: =N75+(N76*11) -> 

Sheet Global Select Health Plan
M32: FALSE
B33: Nombre del asegurado titular : | C33: =+'INGRESO DE DATOS'!$D$15 -> JUAN VIDAL | K33: Deducibles | M33: PLAN A | N33: PLAN 1 | O33: PLAN 2 | P33: PLAN 3 | Q33: PLAN 4
K34: Dentro del país de residencia | M34: 2000 | N34: 3500 | O34: 5000 | P34: 10000 | Q34: 20000
B35: Agencia / Agente : | C35: =+'INGRESO DE DATOS'!$D$29 -> Nombre del Agente | K35: Fuera del país de residencia | M35: 2000 | N35: 3500 | O35: 5000 | P35: 10000 | Q35: 20000
K37: TARIFAS ANUALES
B38: Número de adultos en la póliza : | C38: =+'INGRESO DE DATOS'!$D$17 -> 0 | F38: Edad del asegurado titular : | G38: =+'INGRESO DE DATOS'!$D$19 -> 0 | H38: =VLOOKUP($C$38,Tablas!A1503:B1504,2,0) ->  | K38: Prima del asegurado titular : | M38: =(VLOOKUP($G$38,Tablas!$A$305:$G$371,3,TRUE))*'INGRESO DE DATOS'!$D$26+(Tablas!$Q$2) ->  | N38: =(VLOOKUP($G$38,Tablas!$A$305:$G$371,4,TRUE))*'INGRESO DE DATOS'!$D$26+(Tablas!$Q$2) ->  | O38: =(VLOOKUP($G$38,Tablas!$A$305:$G$371,5,TRUE))*'INGRESO DE DATOS'!$D$26+(Tablas!$Q$2) ->  | P38: =(VLOOKUP($G$38,Tablas!$A$305:$G$371,6,TRUE))*'INGRESO DE DATOS'!$D$26+(Tablas!$Q$2) ->  | Q38: =(VLOOKUP($G$38,Tablas!$A$305:$G$371,7,TRUE))*'INGRESO DE DATOS'!$D$26+(Tablas!$Q$2) -> 
K39: Prima del (de la) cónyuge: | M39: =(IF($C$38=1,0,(VLOOKUP($G$40,Tablas!$A$305:$G$371,3,TRUE))))*'INGRESO DE DATOS'!$D$26+(IF($C$38=1,0,(Tablas!$Q$2))) ->  | N39: =(IF($C$38=1,0,(VLOOKUP($G$40,Tablas!$A$305:$G$371,4,TRUE))))*'INGRESO DE DATOS'!$D$26+(IF($C$38=1,0,(Tablas!$Q$2))) ->  | O39: =(IF($C$38=1,0,(VLOOKUP($G$40,Tablas!$A$305:$G$371,5,TRUE))))*'INGRESO DE DATOS'!$D$26+(IF($C$38=1,0,(Tablas!$Q$2))) ->  | P39: =(IF($C$38=1,0,(VLOOKUP($G$40,Tablas!$A$305:$G$371,6,TRUE))))*'INGRESO DE DATOS'!$D$26+(IF($C$38=1,0,(Tablas!$Q$2))) ->  | Q39: =(IF($C$38=1,0,(VLOOKUP($G$40,Tablas!$A$305:$G$371,7,TRUE))))*'INGRESO DE DATOS'!$D$26+(IF($C$38=1,0,(Tablas!$Q$2))) -> 
B40: Número de hijos en la póliza : | C40: =+'INGRESO DE DATOS'!$H$17 -> 0 | F40: Edad del (de la) cónyuge : | G40: =+'INGRESO DE DATOS'!$H$19 -> 0 | K40: Prima del (de los) Hijo (s) : | M40: =(IF($C$40=0,0,(VLOOKUP($C$40,Tablas!$A$372:$G$374,3,TRUE))))*'INGRESO DE DATOS'!$D$26 -> 0 | N40: =(IF($C$40=0,0,(VLOOKUP($C$40,Tablas!$A$372:$G$374,4,TRUE))))*'INGRESO DE DATOS'!$D$26 -> 0 | O40: =(IF($C$40=0,0,(VLOOKUP($C$40,Tablas!$A$372:$G$374,5,TRUE))))*'INGRESO DE DATOS'!$D$26 -> 0 | P40: =(IF($C$40=0,0,(VLOOKUP($C$40,Tablas!$A$372:$G$374,6,TRUE))))*'INGRESO DE DATOS'!$D$26 -> 0 | Q40: =(IF($C$40=0,0,(VLOOKUP($C$40,Tablas!$A$372:$G$374,7,TRUE))))*'INGRESO DE DATOS'!$D$26 -> 0
K41: Total otros dependientes | M41: =Tablas!Q306 * 'INGRESO DE DATOS'!$D$26 -> 0 | N41: =Tablas!R306 * 'INGRESO DE DATOS'!$D$26 -> 0 | O41: =Tablas!S306 * 'INGRESO DE DATOS'!$D$26 -> 0 | P41: =Tablas!T306 * 'INGRESO DE DATOS'!$D$26 -> 0 | Q41: =Tablas!U306 * 'INGRESO DE DATOS'!$D$26 -> 0
B42: FECHA DE COTIZACION : | D42: =NOW() -> 2023-10-26T13:25:47.830 | K42: TOTAL PRIMA NETA : | M42: =SUM(M38:M41) ->  | N42: =SUM(N38:N41) -> 
K43: Costo administrativo anual : | M43: 937.5 | N43: 937.5 | O43: 937.5 | P43: 937.5 | Q43: 937.5
K44: IVA (16%) : | M44: =SUM(M42:M43)*16% ->  | N44: =SUM(N42:N43)*16% -> 
K45: =IF('INGRESO DE DATOS'!$D$26=0.8,"Costo total, (-20% de descuento)",IF('INGRESO DE DATOS'!$D$26=0.9,"Costo total, (-10% de descuento)","Gran total anual")) -> Gran total anual | M45: =SUM(M42:M44) ->  | N45: =SUM(N42:N44) -> 
K47: TARIFAS SEMESTRALES
K48: Prima del asegurado titular : | M48: =M38*(1+Tablas!$K$4) ->  | N48: =N38*(1+Tablas!$K$4) ->  | O48: =O38*(1+Tablas!$K$4) ->  | P48: =P38*(1+Tablas!$K$4) ->  | Q48: =Q38*(1+Tablas!$K$4) -> 
K49: Prima del (de la) cónyuge: | M49: =M39*(1+Tablas!$K$4) ->  | N49: =N39*(1+Tablas!$K$4) ->  | O49: =O39*(1+Tablas!$K$4) ->  | P49: =P39*(1+Tablas!$K$4) ->  | Q49: =Q39*(1+Tablas!$K$4) -> 
K50: Prima del (de los) Hijo (s) : | M50: =M40*(1+Tablas!$K$4) -> 0 | N50: =N40*(1+Tablas!$K$4) -> 0 | O50: =O40*(1+Tablas!$K$4) -> 0 | P50: =P40*(1+Tablas!$K$4) -> 0 | Q50: =Q40*(1+Tablas!$K$4) -> 0
K51: Total otros dependientes | M51: =M41*(1+Tablas!$K$4) -> 0 | N51: =N41*(1+Tablas!$K$4) -> 0 | O51: =O41*(1+Tablas!$K$4) -> 0 | P51: =P41*(1+Tablas!$K$4) -> 0 | Q51: =Q41*(1+Tablas!$K$4) -> 0
K52: TOTAL PRIMA NETA : | M52: =SUM(M48:M51) ->  | N52: =SUM(N48:N51) ->  | Q52: =SUM(Q48:Q51) -> 
K53: Costo administrativo anual : | M53: 937.5 | N53: 937.5 | O53: 937.5 | P53: 937.5 | Q53: 937.5
K54: IVA (16%) : | M54: =SUM(M52:M53)*16% ->  | N54: =SUM(N52:N53)*16% ->  | P54: =SUM(P52:P53)*16% -> 
K55: TOTAL primera cuota : | M55: =((M52/2)+M53)*1.16 ->  | N55: =((N52/2)+N53)*1.16 -> 
K56: Valor segunda cuota : | M56: =M52/2*1.16 ->  | N56: =N52/2*1.16 -> 
K57: =K45 -> Gran total anual | M57: =+M55+M56 ->  | N57: =+N55+N56 ->  | P57: =+P55+P56 -> 
K59: TARIFAS TRIMESTRALES
K60: Prima del asegurado titular : | M60: =M38*(1+Tablas!$K$3) ->  | N60: =N38*(1+Tablas!$K$3) ->  | O60: =O38*(1+Tablas!$K$3) ->  | P60: =P38*(1+Tablas!$K$3) ->  | Q60: =Q38*(1+Tablas!$K$3) -> 
K61: Prima del (de la) cónyuge: | M61: =M39*(1+Tablas!$K$3) ->  | N61: =N39*(1+Tablas!$K$3) ->  | O61: =O39*(1+Tablas!$K$3) ->  | P61: =P39*(1+Tablas!$K$3) ->  | Q61: =Q39*(1+Tablas!$K$3) -> 
K62: Prima del (de los) Hijo (s) : | M62: =M40*(1+Tablas!$K$3) -> 0 | N62: =N40*(1+Tablas!$K$3) -> 0 | O62: =O40*(1+Tablas!$K$3) -> 0 | P62: =P40*(1+Tablas!$K$3) -> 0 | Q62: =Q40*(1+Tablas!$K$3) -> 0
K63: Total otros dependientes | M63: =M41*(1+Tablas!$K$3) -> 0 | N63: =N41*(1+Tablas!$K$3) -> 0 | O63: =O41*(1+Tablas!$K$3) -> 0 | P63: =P41*(1+Tablas!$K$3) -> 0 | Q63: =Q41*(1+Tablas!$K$3) -> 0
K64: TOTAL PRIMA NETA : | M64: =SUM(M60:M63) ->  | N64: =SUM(N60:N63) ->  | Q64: =SUM(Q60:Q63) -> 
K65: Costo administrativo anual : | M65: 937.5 | N65: 937.5 | O65: 937.5 | P65: 937.5 | Q65: 937.5
K66: IVA (16%) : | M66: =SUM(M64:M65)*16% ->  | N66: =SUM(N64:N65)*16% ->  | O66: =SUM(O64:O65)*16% ->  | P66: =SUM(P64:P65)*16% -> 
K67: TOTAL primera cuota : | M67: =((M64/4)+M65)*1.16 ->  | N67: =((N64/4)+N65)*1.16 ->  | O67: =((O64/4)+O65)*1.16 -> 
K68: Valor cuota trimestral 2 a 4: | M68: =M64/4*1.16 ->  | N68: =N64/4*1.16 -> 
K69: =K57 -> Gran total anual | M69: =M67+(M68*3) ->  | N69: =N67+(N68*3) ->  | O69: =O67+(O68*3) ->  | P69: =P67+(P68*3) -> 
K71: TARIFAS MENSUALES
K72: Prima del asegurado titular : | M72: =M38*(1+Tablas!$K$2) ->  | N72: =N38*(1+Tablas!$K$2) ->  | O72: =O38*(1+Tablas!$K$2) ->  | P72: =P38*(1+Tablas!$K$2) ->  | Q72: =Q38*(1+Tablas!$K$2) -> 
B73: Tarifas validas a partir del 1 de marzo al 31 de diciembre del 2023. | K73: Prima del (de la) cónyuge: | M73: =M39*(1+Tablas!$K$2) ->  | N73: =N39*(1+Tablas!$K$2) ->  | O73: =O39*(1+Tablas!$K$2) ->  | P73: =P39*(1+Tablas!$K$2) ->  | Q73: =Q39*(1+Tablas!$K$2) -> 
B74: Promociones válidas al 31 de diciembre de 2023. | K74: Prima del (de los) Hijo (s) : | M74: =M40*(1+Tablas!$K$2) -> 0 | N74: =N40*(1+Tablas!$K$2) -> 0 | O74: =O40*(1+Tablas!$K$2) -> 0 | P74: =P40*(1+Tablas!$K$2) -> 0 | Q74: =Q40*(1+Tablas!$K$2) -> 0
B75: El 10% de descuento en productos Globales sobre prima neta será aplicable durante toda la vida de la póliza, siempre y cuando el asegurado no haga cambios en el plan y deducibles contratados. | K75: Total otros dependientes | M75: =M41*(1+Tablas!$K$2) -> 0 | N75: =N41*(1+Tablas!$K$2) -> 0 | O75: =O41*(1+Tablas!$K$2) -> 0 | P75: =P41*(1+Tablas!$K$2) -> 0 | Q75: =Q41*(1+Tablas!$K$2) -> 0
B76: 6 meses sin intereses sin cargo al agente para modalidad de pago anual durante el primer año póliza con tarjetas de crédito participantes: Afirme, Azteca, Bajío, Banjercito, Banorte, Banregio, BBVA, Citibanamex, Famsa, HSBC, Inbursa, Invex, IXE, Liverpool, Mifel, Multiva, Santander, Scotiabank, Sociedad de Facilidades Multirotativas y American Express. Promoción válida sólo para tarjetas emitidas en la República Mexicana. | K76: TOTAL PRIMA NETA : | M76: =SUM(M72:M75) ->  | N76: =SUM(N72:N75) ->  | Q76: =SUM(Q72:Q75) -> 
B77: En caso de que el asegurado elija la promoción “Sin costo por pago fraccionado” no podrá optar por la promoción a meses sin intereses. | K77: Costo administrativo anual : | M77: 937.5 | N77: 937.5 | O77: 937.5 | P77: 937.5 | Q77: 937.5
B78: Las pólizas contratadas cuentan con limitaciones y exclusiones las cuáles pueden ser consultadas en www.bupasalud.com.mx Para más información, llámanos al 55 5202-1701 ext 4 o envíanos un correo a: ventasdirectas@bupa.com.mx | K78: IVA (16%) : | M78: =SUM(M76:M77)*16% ->  | N78: =SUM(N76:N77)*16% ->  | P78: =SUM(P76:P77)*16% -> 
B79: La presente cotización es de carácter informativo, no constituye una solicitud de seguro y/o el monto de la prima definitiva y/o las condiciones de la misma y/o una oferta de aseguramiento en términos del artículo 5to de la Ley Sobre el Contrato de Seguro. La emisión de la póliza asícomo posibles cambios en la tarifa están sujetos a valoración del riesgo de acuerdo con las políticas de Suscripción de Bupa México y es susceptible de modificaciones, por lo que Bupa podrá aceptar o negar el aseguramiento del riesgo propuesto. | K79: TOTAL primera cuota : | M79: =((M76/12)+M77)*1.16 ->  | N79: =((N76/12)+N77)*1.16 -> 
K80: Valor cuota mensual 2 a 12 : | M80: =M76/12*1.16 ->  | N80: =N76/12*1.16 -> 
K81: =K69 -> Gran total anual | M81: =M79+(M80*11) ->  | N81: =N79+(N80*11) ->  | O81: =O79+(O80*11) ->  | P81: =P79+(P80*11) -> 

Sheet Global Premier Health Plan
B36: Nombre del asegurado titular : | C36: =+'INGRESO DE DATOS'!$D$15 -> JUAN VIDAL | L36: Deducibles | N36: PLAN A | O36: PLAN 1 | P36: PLAN 2 | Q36: PLAN 3
L37: Dentro del país de residencia | N37: 1000 | O37: 2000 | P37: 5000 | Q37: 10000
B38: Agencia / Agente : | C38: =+'INGRESO DE DATOS'!$D$29 -> Nombre del Agente | L38: Fuera del país de residencia | N38: 1000 | O38: 2000 | P38: 5000 | Q38: 10000
C40: Número de adultos en la póliza : | D40: =+'INGRESO DE DATOS'!$D$17 -> 0 | F40: Edad del asegurado titular : | G40: =+'INGRESO DE DATOS'!$D$19 -> 0 | I40: =VLOOKUP($D$40,Tablas!A1503:B1504,2,0) ->  | L40: TARIFAS ANUALES
L41: Prima del asegurado titular : | N41: =(VLOOKUP($G$40,Tablas!$A$155:$G$221,3,TRUE))*'INGRESO DE DATOS'!$D$26+(Tablas!$Q$2) ->  | O41: =(VLOOKUP($G$40,Tablas!$A$155:$G$221,4,TRUE))*'INGRESO DE DATOS'!$D$26+(Tablas!$Q$2) ->  | P41: =(VLOOKUP($G$40,Tablas!$A$155:$G$221,5,TRUE))*'INGRESO DE DATOS'!$D$26+(Tablas!$Q$2) ->  | Q41: =(VLOOKUP($G$40,Tablas!$A$155:$G$221,6,TRUE))*'INGRESO DE DATOS'!$D$26+(Tablas!$Q$2) -> 
C42: Número de hijos en la póliza : | D42: =+'INGRESO DE DATOS'!$H$17 -> 0 | F42: Edad del (de la) cónyuge : | G42: =+'INGRESO DE DATOS'!$H$19 -> 0 | L42: Prima del (de la) cónyuge: | N42: =(IF($D$40=1,0,(VLOOKUP($G$42,Tablas!$A$155:$G$221,3,TRUE))))*'INGRESO DE DATOS'!$D$26+(IF($D$40=1,0,(Tablas!$Q$2))) ->  | O42: =(IF($D$40=1,0,(VLOOKUP($G$42,Tablas!$A$155:$G$221,4,TRUE))))*'INGRESO DE DATOS'!$D$26+(IF($D$40=1,0,(Tablas!$Q$2))) ->  | P42: =(IF($D$40=1,0,(VLOOKUP($G$42,Tablas!$A$155:$G$221,5,TRUE))))*'INGRESO DE DATOS'!$D$26+(IF($D$40=1,0,(Tablas!$Q$2))) ->  | Q42: =(IF($D$40=1,0,(VLOOKUP($G$42,Tablas!$A$155:$G$221,6,TRUE))))*'INGRESO DE DATOS'!$D$26+(IF($D$40=1,0,(Tablas!$Q$2))) -> 
L43: Prima del (de los) Hijo (s) : | N43: =(IF($D$42=0,0,(VLOOKUP($D$42,Tablas!$A$222:$G$224,3,TRUE))))*'INGRESO DE DATOS'!$D$26 -> 0 | O43: =(IF($D$42=0,0,(VLOOKUP($D$42,Tablas!$A$222:$G$224,4,TRUE))))*'INGRESO DE DATOS'!$D$26 -> 0 | P43: =(IF($D$42=0,0,(VLOOKUP($D$42,Tablas!$A$222:$G$224,5,TRUE))))*'INGRESO DE DATOS'!$D$26 -> 0 | Q43: =(IF($D$42=0,0,(VLOOKUP($D$42,Tablas!$A$222:$G$224,6,TRUE))))*'INGRESO DE DATOS'!$D$26 -> 0
B44: FECHA DE COTIZACION : | D44: =NOW() -> 2023-10-26T13:25:47.830 | L44: Total otros dependientes | N44: =Tablas!Q156*'INGRESO DE DATOS'!$D$26 -> 0 | O44: =Tablas!R156*'INGRESO DE DATOS'!$D$26 -> 0 | P44: =Tablas!S156*'INGRESO DE DATOS'!$D$26 -> 0 | Q44: =Tablas!T156*'INGRESO DE DATOS'!$D$26 -> 0
L45: TOTAL PRIMA NETA : | N45: =SUM(N41:N44) ->  | O45: =SUM(O41:O44) -> 
L46: Costo administrativo anual : | N46: 937.5 | O46: 937.5 | P46: 937.5 | Q46: 937.5
L47: IVA (16%) : | N47: =SUM(N45:N46)*16% ->  | O47: =SUM(O45:O46)*16% ->  | P47: =SUM(P45:P46)*16% -> 
L48: =IF('INGRESO DE DATOS'!$D$26=0.8,"Costo total, (-20% de descuento)",IF('INGRESO DE DATOS'!$D$26=0.9,"Costo total, (-10% de descuento)","Gran total anual")) -> Gran total anual | N48: =SUM(N45:N47) ->  | O48: =SUM(O45:O47) ->  | P48: =SUM(P45:P47) -> 
L50: TARIFAS SEMESTRALES
L51: Prima del asegurado titular : | N51: =N41*(1+Tablas!$K$4) ->  | O51: =O41*(1+Tablas!$K$4) ->  | P51: =P41*(1+Tablas!$K$4) ->  | Q51: =Q41*(1+Tablas!$K$4) -> 
L52: Prima del (de la) cónyuge: | N52: =N42*(1+Tablas!$K$4) ->  | O52: =O42*(1+Tablas!$K$4) ->  | P52: =P42*(1+Tablas!$K$4) ->  | Q52: =Q42*(1+Tablas!$K$4) -> 
L53: Prima del (de los) Hijo (s) : | N53: =N43*(1+Tablas!$K$4) -> 0 | O53: =O43*(1+Tablas!$K$4) -> 0 | P53: =P43*(1+Tablas!$K$4) -> 0 | Q53: =Q43*(1+Tablas!$K$4) -> 0
L54: Total otros dependientes | N54: =N44*(1+Tablas!$K$4) -> 0 | O54: =O44*(1+Tablas!$K$4) -> 0 | P54: =P44*(1+Tablas!$K$4) -> 0 | Q54: =Q44*(1+Tablas!$K$4) -> 0
L55: TOTAL PRIMA NETA : | N55: =SUM(N51:N54) ->  | O55: =SUM(O51:O54) -> 
L56: Costo administrativo anual : | N56: 937.5 | O56: 937.5 | P56: 937.5 | Q56: 937.5
L57: IVA (16%) : | N57: =SUM(N55:N56)*16% ->  | O57: =SUM(O55:O56)*16% -> 
L58: TOTAL primera cuota : | N58: =((N55/2)+N56)*1.16 ->  | O58: =((O55/2)+O56)*1.16 ->  | P58: =((P55/2)+P56)*1.16 -> 
L59: Valor segunda cuota : | N59: =N55/2*1.16 ->  | O59: =O55/2*1.16 ->  | P59: =P55/2*1.16 -> 
L60: =L48 -> Gran total anual | N60: =N58+N59 ->  | O60: =O58+O59 ->  | P60: =P58+P59 ->  | Q60: =Q58+Q59 -> 
L62: TARIFAS TRIMESTRALES
L63: Prima del asegurado titular : | N63: =N41*(1+Tablas!$K$3) ->  | O63: =O41*(1+Tablas!$K$3) ->  | P63: =P41*(1+Tablas!$K$3) ->  | Q63: =Q41*(1+Tablas!$K$3) -> 
L64: Prima del (de la) cónyuge: | N64: =N42*(1+Tablas!$K$3) ->  | O64: =O42*(1+Tablas!$K$3) ->  | P64: =P42*(1+Tablas!$K$3) ->  | Q64: =Q42*(1+Tablas!$K$3) -> 
L65: Prima del (de los) Hijo (s) : | N65: =N43*(1+Tablas!$K$3) -> 0 | O65: =O43*(1+Tablas!$K$3) -> 0 | P65: =P43*(1+Tablas!$K$3) -> 0 | Q65: =Q43*(1+Tablas!$K$3) -> 0
L66: Total otros dependientes | N66: =N44*(1+Tablas!$K$3) -> 0 | O66: =O44*(1+Tablas!$K$3) -> 0 | P66: =P44*(1+Tablas!$K$3) -> 0 | Q66: =Q44*(1+Tablas!$K$3) -> 0
L67: TOTAL PRIMA NETA : | N67: =SUM(N63:N66) ->  | O67: =SUM(O63:O66) -> 
L68: Costo administrativo anual : | N68: 937.5 | O68: 937.5 | P68: 937.5 | Q68: 937.5
L69: IVA (16%) : | N69: =SUM(N67:N68)*16% ->  | O69: =SUM(O67:O68)*16% -> 
L70: TOTAL primera cuota : | N70: =((N67/4)+N68)*1.16 ->  | O70: =((O67/4)+O68)*1.16 -> 
L71: Valor cuota trimestral 2 a 4: | N71: =N67/4*1.16 ->  | O71: =O67/4*1.16 -> 
L72: =L60 -> Gran total anual | N72: =N70+(N71*3) ->  | O72: =O70+(O71*3) ->  | P72: =P70+(P71*3) ->  | Q72: =Q70+(Q71*3) -> 
L74: TARIFAS MENSUALES
L75: Prima del asegurado titular : | N75: =N41*(1+Tablas!$K$2) ->  | O75: =O41*(1+Tablas!$K$2) ->  | P75: =P41*(1+Tablas!$K$2) ->  | Q75: =Q41*(1+Tablas!$K$2) -> 
L76: Prima del (de la) cónyuge: | N76: =N42*(1+Tablas!$K$2) ->  | O76: =O42*(1+Tablas!$K$2) ->  | P76: =P42*(1+Tablas!$K$2) ->  | Q76: =Q42*(1+Tablas!$K$2) -> 
B77: Tarifas validas a partir del 1 de marzo al 31 de diciembre del 2023. | L77: Prima del (de los) Hijo (s) : | N77: =N43*(1+Tablas!$K$2) -> 0 | O77: =O43*(1+Tablas!$K$2) -> 0 | P77: =P43*(1+Tablas!$K$2) -> 0 | Q77: =Q43*(1+Tablas!$K$2) -> 0
B78: Promociones válidas al 31 de diciembre de 2023. | L78: Total otros dependientes | N78: =N44*(1+Tablas!$K$2) -> 0 | O78: =O44*(1+Tablas!$K$2) -> 0 | P78: =P44*(1+Tablas!$K$2) -> 0 | Q78: =Q44*(1+Tablas!$K$2) -> 0
B79: El 10% de descuento en productos Globales sobre prima neta será aplicable durante toda la vida de la póliza, siempre y cuando el asegurado no haga cambios en el plan y deducibles contratados. | L79: TOTAL PRIMA NETA : | N79: =SUM(N75:N78) ->  | O79: =SUM(O75:O78) ->  | Q79: =SUM(Q75:Q78) -> 
B80: 6 meses sin intereses sin cargo al agente para modalidad de pago anual durante el primer año póliza con tarjetas de crédito participantes: Afirme, Azteca, Bajío, Banjercito, Banorte, Banregio, BBVA, Citibanamex, Famsa, HSBC, Inbursa, Invex, IXE, Liverpool, Mifel, Multiva, Santander, Scotiabank, Sociedad de Facilidades Multirotativas y American Express. Promoción válida sólo para tarjetas emitidas en la República Mexicana. | L80: Costo administrativo anual : | N80: 937.5 | O80: 937.5 | P80: 937.5 | Q80: 937.5
B81: En caso de que el asegurado elija la promoción “Sin costo por pago fraccionado” no podrá optar por la promoción a meses sin intereses. | L81: IVA (16%) : | N81: =SUM(N79:N80)*16% ->  | O81: =SUM(O79:O80)*16% -> 
B82: Las pólizas contratadas cuentan con limitaciones y exclusiones las cuáles pueden ser consultadas en www.bupasalud.com.mx Para más información, llámanos al 55 5202-1701 ext 4 o envíanos un correo a: ventasdirectas@bupa.com.mx | L82: TOTAL primera cuota : | N82: =((N79/12)+N80)*1.16 ->  | O82: =((O79/12)+O80)*1.16 -> 
B83: La presente cotización es de carácter informativo, no constituye una solicitud de seguro y/o el monto de la prima definitiva y/o las condiciones de la misma y/o una oferta de aseguramiento en términos del artículo 5to de la Ley Sobre el Contrato de Seguro. La emisión de la póliza asícomo posibles cambios en la tarifa están sujetos a valoración del riesgo de acuerdo con las políticas de Suscripción de Bupa México y es susceptible de modificaciones, por lo que Bupa podrá aceptar o negar el aseguramiento del riesgo propuesto. | L83: Valor cuota mensual 2 a 12 : | N83: =N79/12*1.16 ->  | O83: =O79/12*1.16 -> 
L84: =L72 -> Gran total anual | N84: =N82+(N83*11) ->  | O84: =O82+(O83*11) ->  | P84: =P82+(P83*11) ->  | Q84: =Q82+(Q83*11) -> 

Sheet Global Select PE Health Plan
M32: FALSE
B33: Nombre del asegurado titular : | C33: =+'INGRESO DE DATOS'!$D$15 -> JUAN VIDAL | K33: Deducibles | M33: PLAN A | N33: PLAN 1 | O33: PLAN 2 | P33: PLAN 3 | Q33: PLAN 4
K34: Dentro del país de residencia | M34: 2000 | N34: 3500 | O34: 5000 | P34: 10000 | Q34: 20000
B35: Agencia / Agente : | C35: =+'INGRESO DE DATOS'!$D$29 -> Nombre del Agente | K35: Fuera del país de residencia | M35: 2000 | N35: 3500 | O35: 5000 | P35: 10000 | Q35: 20000
K37: TARIFAS ANUALES
B38: Número de adultos en la póliza : | C38: =+'INGRESO DE DATOS'!$D$17 -> 0 | F38: Edad del asegurado titular : | G38: =+'INGRESO DE DATOS'!$D$19 -> 0 | H38: =VLOOKUP($C$38,Tablas!A1503:B1504,2,0) ->  | K38: Prima del asegurado titular : | M38: =(VLOOKUP($G$38,Tablas!$A$1512:$G$1578,3,TRUE))*'INGRESO DE DATOS'!E26+(Tablas!$Q$2) ->  | N38: =(VLOOKUP($G$38,Tablas!$A$1512:$G$1578,4,TRUE))*'INGRESO DE DATOS'!E26+(Tablas!$Q$2) ->  | O38: =IF('INGRESO DE DATOS'!$E$21=TRUE,(VLOOKUP($G$38,Tablas!$A$1512:$G$1578,5,TRUE))*'INGRESO DE DATOS'!E26+(Tablas!$Q$2),(VLOOKUP($G$38,Tablas!$A$1512:$G$1578,5,TRUE)+(Tablas!$Q$2))) ->  | P38: =(VLOOKUP($G$38,Tablas!$A$1512:$G$1578,6,TRUE))*'INGRESO DE DATOS'!E26+(Tablas!$Q$2) ->  | Q38: =(VLOOKUP($G$38,Tablas!$A$1512:$G$1578,7,TRUE))*'INGRESO DE DATOS'!E26+(Tablas!$Q$2) -> 
K39: Prima del (de la) cónyuge: | M39: =(IF($C$38=1,0,(VLOOKUP($G$40,Tablas!$A$1512:$G$1578,3,TRUE))))*'INGRESO DE DATOS'!E26+(IF($C$38=1,0,(Tablas!$Q$2))) ->  | N39: =(IF($C$38=1,0,(VLOOKUP($G$40,Tablas!$A$1512:$G$1578,4,TRUE))))*'INGRESO DE DATOS'!E26+(IF($C$38=1,0,(Tablas!$Q$2))) ->  | O39: =(IF($C$38=1,0,(VLOOKUP($G$40,Tablas!$A$1512:$G$1578,5,TRUE))))*'INGRESO DE DATOS'!E26+(IF($C$38=1,0,(Tablas!$Q$2))) ->  | P39: =(IF($C$38=1,0,(VLOOKUP($G$40,Tablas!$A$1512:$G$1578,6,TRUE))))*'INGRESO DE DATOS'!E26+(IF($C$38=1,0,(Tablas!$Q$2))) ->  | Q39: =(IF($C$38=1,0,(VLOOKUP($G$40,Tablas!$A$1512:$G$1578,7,TRUE))))*'INGRESO DE DATOS'!E26+(IF($C$38=1,0,(Tablas!$Q$2))) -> 
B40: Número de hijos en la póliza : | C40: =+'INGRESO DE DATOS'!$H$17 -> 0 | F40: Edad del (de la) cónyuge : | G40: =+'INGRESO DE DATOS'!$H$19 -> 0 | K40: Prima del (de los) Hijo (s) : | M40: =(IF($C$40=0,0,(VLOOKUP($C$40,Tablas!$A$1579:$G$1581,3,TRUE))))*'INGRESO DE DATOS'!E26 -> 0 | N40: =IF('INGRESO DE DATOS'!$E$21=TRUE,(IF($C$40=0,0,(VLOOKUP($C$40,Tablas!$A$1579:$G$1581,4,TRUE))))*'INGRESO DE DATOS'!E26,(IF($C$40=0,0,(VLOOKUP($C$40,Tablas!$A$1579:$G$1581,4,TRUE))))) -> 0 | O40: =IF('INGRESO DE DATOS'!$E$21=TRUE,(IF($C$40=0,0,(VLOOKUP($C$40,Tablas!$A$1579:$G$1581,5,TRUE))))*'INGRESO DE DATOS'!E26,(IF($C$40=0,0,(VLOOKUP($C$40,Tablas!$A$1579:$G$1581,5,TRUE))))) -> 0 | P40: =(IF($C$40=0,0,(VLOOKUP($C$40,Tablas!$A$1579:$G$1581,6,TRUE))))*'INGRESO DE DATOS'!E26 -> 0 | Q40: =(IF($C$40=0,0,(VLOOKUP($C$40,Tablas!$A$1579:$G$1581,7,TRUE))))*'INGRESO DE DATOS'!E26 -> 0
K41: Total otros dependientes | M41: =Tablas!Q1513*'INGRESO DE DATOS'!E26 -> 0 | N41: =IF('INGRESO DE DATOS'!$E$21=TRUE,Tablas!R1513*'INGRESO DE DATOS'!E26,Tablas!R1513) -> 0 | O41: =IF('INGRESO DE DATOS'!$E$21=TRUE,Tablas!S1513*'INGRESO DE DATOS'!E26,Tablas!S1513) -> 0 | P41: =Tablas!T1513*'INGRESO DE DATOS'!E26 -> 0 | Q41: =Tablas!U1513*'INGRESO DE DATOS'!E26 -> 0
B42: FECHA DE COTIZACION : | D42: =NOW() -> 2023-10-26T13:25:47.830 | K42: TOTAL PRIMA NETA : | M42: =SUM(M38:M41) ->  | N42: =SUM(N38:N41) -> 
K43: Costo administrativo anual : | M43: 937.5 | N43: 937.5 | O43: 937.5 | P43: 937.5 | Q43: 937.5
K44: IVA (16%) : | M44: =SUM(M42:M43)*16% ->  | N44: =SUM(N42:N43)*16% ->  | P44: =SUM(P42:P43)*16% -> 
K45: =IF('INGRESO DE DATOS'!$E$21=TRUE,"Costo total, (-10% de descuento)","Gran total anual") -> Gran total anual | M45: =SUM(M42:M44) ->  | N45: =SUM(N42:N44) -> 
K47: TARIFAS SEMESTRALES
K48: Prima del asegurado titular : | M48: =M38*(1+Tablas!$K$4) ->  | N48: =N38*(1+Tablas!$K$4) ->  | O48: =O38*(1+Tablas!$K$4) ->  | P48: =P38*(1+Tablas!$K$4) ->  | Q48: =Q38*(1+Tablas!$K$4) -> 
K49: Prima del (de la) cónyuge: | M49: =M39*(1+Tablas!$K$4) ->  | N49: =N39*(1+Tablas!$K$4) ->  | O49: =O39*(1+Tablas!$K$4) ->  | P49: =P39*(1+Tablas!$K$4) ->  | Q49: =Q39*(1+Tablas!$K$4) -> 
K50: Prima del (de los) Hijo (s) : | M50: =M40*(1+Tablas!$K$4) -> 0 | N50: =N40*(1+Tablas!$K$4) -> 0 | O50: =O40*(1+Tablas!$K$4) -> 0 | P50: =P40*(1+Tablas!$K$4) -> 0 | Q50: =Q40*(1+Tablas!$K$4) -> 0
K51: Total otros dependientes | M51: =M41*(1+Tablas!$K$4) -> 0 | N51: =N41*(1+Tablas!$K$4) -> 0 | O51: =O41*(1+Tablas!$K$4) -> 0 | P51: =P41*(1+Tablas!$K$4) -> 0 | Q51: =Q41*(1+Tablas!$K$4) -> 0
K52: TOTAL PRIMA NETA : | M52: =SUM(M48:M51) ->  | N52: =SUM(N48:N51) -> 
K53: Costo administrativo anual : | M53: 937.5 | N53: 937.5 | O53: 937.5 | P53: 937.5 | Q53: 937.5
K54: IVA (16%) : | M54: =SUM(M52:M53)*16% ->  | N54: =SUM(N52:N53)*16% ->  | P54: =SUM(P52:P53)*16% -> 
K55: TOTAL primera cuota : | M55: =((M52/2)+M53)*1.16 ->  | N55: =((N52/2)+N53)*1.16 -> 
K56: Valor segunda cuota : | M56: =M52/2*1.16 ->  | N56: =N52/2*1.16 -> 
K57: =K45 -> Gran total anual | M57: =+M55+M56 ->  | N57: =+N55+N56 -> 
K59: TARIFAS TRIMESTRALES
K60: Prima del asegurado titular : | M60: =M38*(1+Tablas!$K$3) ->  | N60: =N38*(1+Tablas!$K$3) ->  | O60: =O38*(1+Tablas!$K$3) ->  | P60: =P38*(1+Tablas!$K$3) ->  | Q60: =Q38*(1+Tablas!$K$3) -> 
K61: Prima del (de la) cónyuge: | M61: =M39*(1+Tablas!$K$3) ->  | N61: =N39*(1+Tablas!$K$3) ->  | O61: =O39*(1+Tablas!$K$3) ->  | P61: =P39*(1+Tablas!$K$3) ->  | Q61: =Q39*(1+Tablas!$K$3) -> 
K62: Prima del (de los) Hijo (s) : | M62: =M40*(1+Tablas!$K$3) -> 0 | N62: =N40*(1+Tablas!$K$3) -> 0 | O62: =O40*(1+Tablas!$K$3) -> 0 | P62: =P40*(1+Tablas!$K$3) -> 0 | Q62: =Q40*(1+Tablas!$K$3) -> 0
K63: Total otros dependientes | M63: =M41*(1+Tablas!$K$3) -> 0 | N63: =N41*(1+Tablas!$K$3) -> 0 | O63: =O41*(1+Tablas!$K$3) -> 0 | P63: =P41*(1+Tablas!$K$3) -> 0 | Q63: =Q41*(1+Tablas!$K$3) -> 0
K64: TOTAL PRIMA NETA : | M64: =SUM(M60:M63) ->  | N64: =SUM(N60:N63) -> 
K65: Costo administrativo anual : | M65: 937.5 | N65: 937.5 | O65: 937.5 | P65: 937.5 | Q65: 937.5
K66: IVA (16%) : | M66: =SUM(M64:M65)*16% ->  | N66: =SUM(N64:N65)*16% ->  | P66: =SUM(P64:P65)*16% -> 
K67: TOTAL primera cuota : | M67: =((M64/4)+M65)*1.16 ->  | N67: =((N64/4)+N65)*1.16 -> 
K68: Valor cuota trimestral 2 a 4: | M68: =M64/4*1.16 ->  | N68: =N64/4*1.16 -> 
B69: Este plan cuenta con los siguientes periodos de espera adicionales: | K69: =K57 -> Gran total anual | M69: =M67+(M68*3) ->  | N69: =N67+(N68*3) ->  | O69: =O67+(O68*3) ->  | P69: =P67+(P68*3) -> 
B70: PERÍODOS DE ESPERA
B71: Padecimientos de rodilla, ácido-pépticos, columna vertebral, nariz, senos paranasales, amígdalas, adenoides, hemorroides, hernias, tumoraciones mamarias (benignas y/o malignas), padecimientos anorrectales, prostáticos, ginecológicos, várices, insuficiencia del piso perineal, padecimientos de la vesícula y vías biliares, enfermedades articulares de las falanges de los pies, cataratas, litiasis renal y en vías urinarias. | I71: 6 meses | K71: TARIFAS MENSUALES
B72: Tratamiento contra el Cáncer. | I72: 6 meses | K72: Prima del asegurado titular : | M72: =M38*(1+Tablas!$K$2) ->  | N72: =N38*(1+Tablas!$K$2) ->  | O72: =O38*(1+Tablas!$K$2) ->  | P72: =P38*(1+Tablas!$K$2) ->  | Q72: =Q38*(1+Tablas!$K$2) -> 
B73: Examen dental preventivo. | I73: 10 meses | K73: Prima del (de la) cónyuge: | M73: =M39*(1+Tablas!$K$2) ->  | N73: =N39*(1+Tablas!$K$2) ->  | O73: =O39*(1+Tablas!$K$2) ->  | P73: =P39*(1+Tablas!$K$2) ->  | Q73: =Q39*(1+Tablas!$K$2) -> 
B74: Trasplantes. | I74: 6 meses | K74: Prima del (de los) Hijo (s) : | M74: =M40*(1+Tablas!$K$2) -> 0 | N74: =N40*(1+Tablas!$K$2) -> 0 | O74: =O40*(1+Tablas!$K$2) -> 0 | P74: =P40*(1+Tablas!$K$2) -> 0 | Q74: =Q40*(1+Tablas!$K$2) -> 0
B75: Tarifas validas a partir del 1 de marzo al 31 de diciembre del 2023. | K75: Total otros dependientes | M75: =M41*(1+Tablas!$K$2) -> 0 | N75: =N41*(1+Tablas!$K$2) -> 0 | O75: =O41*(1+Tablas!$K$2) -> 0 | P75: =P41*(1+Tablas!$K$2) -> 0 | Q75: =Q41*(1+Tablas!$K$2) -> 0
B76: Promociones válidas al 31 de diciembre de 2023. | K76: TOTAL PRIMA NETA : | M76: =SUM(M72:M75) ->  | N76: =SUM(N72:N75) ->  | Q76: =SUM(Q72:Q75) -> 
B77: El 10% de descuento en productos Globales sobre prima neta será aplicable durante toda la vida de la póliza, siempre y cuando el asegurado no haga cambios en el plan y deducibles contratados. | K77: Costo administrativo anual : | M77: 937.5 | N77: 937.5 | O77: 937.5 | P77: 937.5 | Q77: 937.5
B78: 6 meses sin intereses sin cargo al agente para modalidad de pago anual durante el primer año póliza con tarjetas de crédito participantes: Afirme, Azteca, Bajío, Banjercito, Banorte, Banregio, BBVA, Citibanamex, Famsa, HSBC, Inbursa, Invex, IXE, Liverpool, Mifel, Multiva, Santander, Scotiabank, Sociedad de Facilidades Multirotativas y American Express. Promoción válida sólo para tarjetas emitidas en la República Mexicana. | K78: IVA (16%) : | M78: =SUM(M76:M77)*16% ->  | N78: =SUM(N76:N77)*16% ->  | O78: =SUM(O76:O77)*16% ->  | P78: =SUM(P76:P77)*16% ->  | Q78: =SUM(Q76:Q77)*16% -> 
B79: En caso de que el asegurado elija la promoción “Sin costo por pago fraccionado” no podrá optar por la promoción a meses sin intereses. | K79: TOTAL primera cuota : | M79: =((M76/12)+M77)*1.16 ->  | N79: =((N76/12)+N77)*1.16 ->  | O79: =((O76/12)+O77)*1.16 ->  | P79: =((P76/12)+P77)*1.16 ->  | Q79: =((Q76/12)+Q77)*1.16 -> 
B80: Las pólizas contratadas cuentan con limitaciones y exclusiones las cuáles pueden ser consultadas en www.bupasalud.com.mx Para más información, llámanos al 55 5202-1701 ext 4 o envíanos un correo a: ventasdirectas@bupa.com.mx | K80: Valor cuota mensual 2 a 12 : | M80: =M76/12*1.16 ->  | N80: =N76/12*1.16 ->  | O80: =O76/12*1.16 ->  | P80: =P76/12*1.16 ->  | Q80: =Q76/12*1.16 -> 
B81: La presente cotización es de carácter informativo, no constituye una solicitud de seguro y/o el monto de la prima definitiva y/o las condiciones de la misma y/o una oferta de aseguramiento en términos del artículo 5to de la Ley Sobre el Contrato de Seguro. La emisión de la póliza asícomo posibles cambios en la tarifa están sujetos a valoración del riesgo de acuerdo con las políticas de Suscripción de Bupa México y es susceptible de modificaciones, por lo que Bupa podrá aceptar o negar el aseguramiento del riesgo propuesto. | K81: =K69 -> Gran total anual | M81: =M79+(M80*11) ->  | N81: =N79+(N80*11) ->  | O81: =O79+(O80*11) ->  | P81: =P79+(P80*11) -> 

Sheet Global Elite Health Plan
B26: Nombre del asegurado titular : | C26: =+'INGRESO DE DATOS'!$D$15 -> JUAN VIDAL | K26: Deducibles | M26: PLAN 1 | N26: PLAN 2 | O26: PLAN 3 | P26: PLAN 4 | Q26: PLAN 5
K27: Dentro del país de residencia | M27: 1000 | N27: 2000 | O27: 3500 | P27: 5000 | Q27: 10000
B28: Agencia / Agente : | C28: =+'INGRESO DE DATOS'!$D$29 -> Nombre del Agente | K28: Fuera del país de residencia | M28: 1000 | N28: 2000 | O28: 3500 | P28: 5000 | Q28: 10000
B30: Número de adultos en la póliza : | D30: =+'INGRESO DE DATOS'!$D$17 -> 0 | E30: Edad del asegurado titular : | G30: =+'INGRESO DE DATOS'!$D$19 -> 0 | I30: =VLOOKUP($D$30,Tablas!A1503:B1504,2,0) ->  | K30: TARIFAS ANUALES
K31: Prima del asegurado titular : | M31: =(VLOOKUP($G$30,Tablas!$A$6:$G$72,3,TRUE))*'INGRESO DE DATOS'!$D$26+(Tablas!$Q$2) ->  | N31: =(VLOOKUP($G$30,Tablas!$A$6:$G$72,4,TRUE))*'INGRESO DE DATOS'!$D$26+(Tablas!$Q$2) ->  | O31: =(VLOOKUP($G$30,Tablas!$A$6:$G$72,5,TRUE))*'INGRESO DE DATOS'!$D$26+(Tablas!$Q$2) ->  | P31: =(VLOOKUP($G$30,Tablas!$A$6:$G$72,6,TRUE))*'INGRESO DE DATOS'!$D$26+(Tablas!$Q$2) ->  | Q31: =(VLOOKUP($G$30,Tablas!$A$6:$G$72,7,TRUE))*'INGRESO DE DATOS'!$D$26+(Tablas!$Q$2) -> 
B32: Número de hijos en la póliza : | D32: =+'INGRESO DE DATOS'!$H$17 -> 0 | E32: Edad del (de la) cónyuge : | G32: =+'INGRESO DE DATOS'!$H$19 -> 0 | K32: Prima del (de la) cónyuge: | M32: =(IF($D$30=1,0,(VLOOKUP($G$32,Tablas!$A$6:$G$72,3,TRUE))))*'INGRESO DE DATOS'!$D$26+(IF($D$30=1,0,(Tablas!$Q$2))) ->  | N32: =(IF($D$30=1,0,(VLOOKUP($G$32,Tablas!$A$6:$G$72,4,TRUE))))*'INGRESO DE DATOS'!$D$26+(IF($D$30=1,0,(Tablas!$Q$2))) ->  | O32: =(IF($D$30=1,0,(VLOOKUP($G$32,Tablas!$A$6:$G$72,5,TRUE))))*'INGRESO DE DATOS'!$D$26+(IF($D$30=1,0,(Tablas!$Q$2))) ->  | P32: =(IF($D$30=1,0,(VLOOKUP($G$32,Tablas!$A$6:$G$72,6,TRUE))))*'INGRESO DE DATOS'!$D$26+(IF($D$30=1,0,(Tablas!$Q$2))) ->  | Q32: =(IF($D$30=1,0,(VLOOKUP($G$32,Tablas!$A$6:$G$72,7,TRUE))))*'INGRESO DE DATOS'!$D$26+(IF($D$30=1,0,(Tablas!$Q$2))) -> 
K33: Prima del (de los) Hijo(s) : | M33: =IF($D$32=0,0,(VLOOKUP($D$32,Tablas!$A$73:$G$75,3,TRUE)))*'INGRESO DE DATOS'!$D$26 -> 0 | N33: =IF($D$32=0,0,(VLOOKUP($D$32,Tablas!$A$73:$G$75,4,TRUE)))*'INGRESO DE DATOS'!$D$26 -> 0 | O33: =IF($D$32=0,0,(VLOOKUP($D$32,Tablas!$A$73:$G$75,5,TRUE)))*'INGRESO DE DATOS'!$D$26 -> 0 | P33: =IF($D$32=0,0,(VLOOKUP($D$32,Tablas!$A$73:$G$75,6,TRUE)))*'INGRESO DE DATOS'!$D$26 -> 0 | Q33: =IF($D$32=0,0,(VLOOKUP($D$32,Tablas!$A$73:$G$75,7,TRUE)))*'INGRESO DE DATOS'!$D$26 -> 0
B34: FECHA DE COTIZACION : | D34: =NOW() -> 2023-10-26T13:25:47.830 | F34: FALSE | K34: Total otros dependientes | M34: =Tablas!Q7*'INGRESO DE DATOS'!$D$26 -> 0 | N34: =Tablas!R7*'INGRESO DE DATOS'!$D$26 -> 0 | O34: =Tablas!S7*'INGRESO DE DATOS'!$D$26 -> 0 | P34: =Tablas!T7*'INGRESO DE DATOS'!$D$26 -> 0 | Q34: =Tablas!U7*'INGRESO DE DATOS'!$D$26 -> 0
K35: TOTAL PRIMA NETA : | M35: =SUM(M31:M34) ->  | N35: =SUM(N31:N34) -> 
K36: Costo administrativo anual : | M36: 937.5 | N36: 937.5 | O36: 937.5 | P36: 937.5 | Q36: 937.5
K37: IVA (16%) : | M37: =SUM(M35:M36)*16% ->  | N37: =SUM(N35:N36)*16% ->  | O37: =SUM(O35:O36)*16% -> 
K38: =IF('INGRESO DE DATOS'!$D$26=0.8,"Costo total, (-20% de descuento)",IF('INGRESO DE DATOS'!$D$26=0.9,"Costo total, (-10% de descuento)","Gran total anual")) -> Gran total anual | M38: =SUM(M35:M37) ->  | N38: =SUM(N35:N37) ->  | O38: =SUM(O35:O37) -> 
K40: TARIFAS SEMESTRALES
K41: Prima del asegurado titular : | M41: =M31*(1+Tablas!$K$4) ->  | N41: =N31*(1+Tablas!$K$4) ->  | O41: =O31*(1+Tablas!$K$4) ->  | P41: =P31*(1+Tablas!$K$4) ->  | Q41: =Q31*(1+Tablas!$K$4) -> 
K42: Prima del (de la) cónyuge: | M42: =M32*(1+Tablas!$K$4) ->  | N42: =N32*(1+Tablas!$K$4) ->  | O42: =O32*(1+Tablas!$K$4) ->  | P42: =P32*(1+Tablas!$K$4) ->  | Q42: =Q32*(1+Tablas!$K$4) -> 
K43: Prima del (de los) Hijo (s) : | M43: =M33*(1+Tablas!$K$4) -> 0 | N43: =N33*(1+Tablas!$K$4) -> 0 | O43: =O33*(1+Tablas!$K$4) -> 0 | P43: =P33*(1+Tablas!$K$4) -> 0 | Q43: =Q33*(1+Tablas!$K$4) -> 0
K44: Total otros dependientes | M44: =M34*(1+Tablas!$K$4) -> 0 | N44: =N34*(1+Tablas!$K$4) -> 0 | O44: =O34*(1+Tablas!$K$4) -> 0 | P44: =P34*(1+Tablas!$K$4) -> 0 | Q44: =Q34*(1+Tablas!$K$4) -> 0
K45: TOTAL PRIMA NETA : | M45: =SUM(M41:M44) ->  | N45: =SUM(N41:N44) ->  | Q45: =SUM(Q41:Q44) -> 
K46: Costo administrativo anual : | M46: 937.5 | N46: 937.5 | O46: 937.5 | P46: 937.5 | Q46: 937.5
K47: IVA (16%) : | M47: =SUM(M45:M46)*16% ->  | N47: =SUM(N45:N46)*16% -> 
K48: TOTAL primera cuota : | M48: =((M45/2)+M46)*1.16 ->  | N48: =((N45/2)+N46)*1.16 -> 
K49: Valor segunda cuota : | M49: =M45/2*1.16 ->  | N49: =N45/2*1.16 -> 
K50: =K38 -> Gran total anual | M50: =M48+M49 ->  | N50: =N48+N49 ->  | P50: =P48+P49 -> 
K52: TARIFAS TRIMESTRALES
K53: Prima del asegurado titular : | M53: =M31*(1+Tablas!$K$3) ->  | N53: =N31*(1+Tablas!$K$3) ->  | O53: =O31*(1+Tablas!$K$3) ->  | P53: =P31*(1+Tablas!$K$3) ->  | Q53: =Q31*(1+Tablas!$K$3) -> 
K54: Prima del (de la) cónyuge: | M54: =M32*(1+Tablas!$K$3) ->  | N54: =N32*(1+Tablas!$K$3) ->  | O54: =O32*(1+Tablas!$K$3) ->  | P54: =P32*(1+Tablas!$K$3) ->  | Q54: =Q32*(1+Tablas!$K$3) -> 
K55: Prima del (de los) Hijo (s) : | M55: =M33*(1+Tablas!$K$3) -> 0 | N55: =N33*(1+Tablas!$K$3) -> 0 | O55: =O33*(1+Tablas!$K$3) -> 0 | P55: =P33*(1+Tablas!$K$3) -> 0 | Q55: =Q33*(1+Tablas!$K$3) -> 0
K56: Total otros dependientes | M56: =M34*(1+Tablas!$K$3) -> 0 | N56: =N34*(1+Tablas!$K$3) -> 0 | O56: =O34*(1+Tablas!$K$3) -> 0 | P56: =P34*(1+Tablas!$K$3) -> 0 | Q56: =Q34*(1+Tablas!$K$3) -> 0
K57: TOTAL PRIMA NETA : | M57: =SUM(M53:M56) ->  | N57: =SUM(N53:N56) -> 
K58: Costo administrativo anual : | M58: 937.5 | N58: 937.5 | O58: 937.5 | P58: 937.5 | Q58: 937.5
K59: IVA (16%) : | M59: =SUM(M57:M58)*16% ->  | N59: =SUM(N57:N58)*16% -> 
K60: TOTAL primera cuota : | M60: =((M57/4)+M58)*1.16 ->  | N60: =((N57/4)+N58)*1.16 -> 
K61: Valor cuota trimestral 2 a 4: | M61: =M57/4*1.16 ->  | N61: =N57/4*1.16 -> 
K62: =K50 -> Gran total anual | M62: =M60+(M61*3) ->  | N62: =N60+(N61*3) -> 
K64: TARIFAS MENSUALES
K65: Prima del asegurado titular : | M65: =M31*(1+Tablas!$K$2) ->  | N65: =N31*(1+Tablas!$K$2) ->  | O65: =O31*(1+Tablas!$K$2) ->  | P65: =P31*(1+Tablas!$K$2) ->  | Q65: =Q31*(1+Tablas!$K$2) -> 
B66: Tarifas validas a partir del 1 de marzo al 31 de diciembre del 2023. | K66: Prima del (de la) cónyuge: | M66: =M32*(1+Tablas!$K$2) ->  | N66: =N32*(1+Tablas!$K$2) ->  | O66: =O32*(1+Tablas!$K$2) ->  | P66: =P32*(1+Tablas!$K$2) ->  | Q66: =Q32*(1+Tablas!$K$2) -> 
B67: Promociones válidas al 31 de diciembre de 2023. | K67: Prima del (de los) Hijo (s) : | M67: =M33*(1+Tablas!$K$2) -> 0 | N67: =N33*(1+Tablas!$K$2) -> 0 | O67: =O33*(1+Tablas!$K$2) -> 0 | P67: =P33*(1+Tablas!$K$2) -> 0 | Q67: =Q33*(1+Tablas!$K$2) -> 0
B68: El 10% de descuento en productos Globales sobre prima neta será aplicable durante toda la vida de la póliza, siempre y cuando el asegurado no haga cambios en el plan y deducibles contratados. | K68: Total otros dependientes | M68: =M34*(1+Tablas!$K$2) -> 0 | N68: =N34*(1+Tablas!$K$2) -> 0 | O68: =O34*(1+Tablas!$K$2) -> 0 | P68: =P34*(1+Tablas!$K$2) -> 0 | Q68: =Q34*(1+Tablas!$K$2) -> 0
B69: 6 meses sin intereses sin cargo al agente para modalidad de pago anual durante el primer año póliza con tarjetas de crédito participantes: Afirme, Azteca, Bajío, Banjercito, Banorte, Banregio, BBVA, Citibanamex, Famsa, HSBC, Inbursa, Invex, IXE, Liverpool, Mifel, Multiva, Santander, Scotiabank, Sociedad de Facilidades Multirotativas y American Express. Promoción válida sólo para tarjetas emitidas en la República Mexicana. | K69: TOTAL PRIMA NETA : | M69: =SUM(M65:M68) ->  | N69: =SUM(N65:N68) ->  | Q69: =SUM(Q65:Q68) -> 
B70: En caso de que el asegurado elija la promoción “Sin costo por pago fraccionado” no podrá optar por la promoción a meses sin intereses. | K70: Costo administrativo anual : | M70: 937.5 | N70: 937.5 | O70: 937.5 | P70: 937.5 | Q70: 937.5
B71: Las pólizas contratadas cuentan con limitaciones y exclusiones las cuáles pueden ser consultadas en www.bupasalud.com.mx Para más información, llámanos al 55 5202-1701 ext 4 o envíanos un correo a: ventasdirectas@bupa.com.mx | K71: IVA (16%) : | M71: =SUM(M69:M70)*16% ->  | N71: =SUM(N69:N70)*16% -> 
B72: La presente cotización es de carácter informativo, no constituye una solicitud de seguro y/o el monto de la prima definitiva y/o las condiciones de la misma y/o una oferta de aseguramiento en términos del artículo 5to de la Ley Sobre el Contrato de Seguro. La emisión de la póliza asícomo posibles cambios en la tarifa están sujetos a valoración del riesgo de acuerdo con las políticas de Suscripción de Bupa México y es susceptible de modificaciones, por lo que Bupa podrá aceptar o negar el aseguramiento del riesgo propuesto. | K72: TOTAL primera cuota : | M72: =((M69/12)+M70)*1.16 ->  | N72: =((N69/12)+N70)*1.16 -> 
K73: Valor cuota mensual 2 a 12 : | M73: =M69/12*1.16 ->  | N73: =N69/12*1.16 -> 
K74: =K62 -> Gran total anual | M74: =M72+(M73*11) ->  | N74: =N72+(N73*11) ->  | O74: =O72+(O73*11) ->  | P74: =P72+(P73*11) ->  | Q74: =Q72+(Q73*11) -> 

Sheet Global Ultimate Health Plan
N19: FALSE
B20: Nombre del asegurado titular : | C20: =+'INGRESO DE DATOS'!$D$15 -> JUAN VIDAL | L20: Deducibles | N20: PLAN 1 | O20: PLAN 2 | P20: PLAN 3
L21: Dentro del país de residencia | N21: 0 | O21: 1000 | P21: 2000
B22: Agencia / Agente : | C22: =+'INGRESO DE DATOS'!$D$29 -> Nombre del Agente | L22: Fuera del país de residencia | N22: 0 | O22: 1000 | P22: 2000
B24: Número de adultos en la póliza : | D24: =+'INGRESO DE DATOS'!$D$17 -> 0 | E24: Edad del asegurado titular : | G24: =+'INGRESO DE DATOS'!$D$19 -> 0 | H24: =VLOOKUP($D$24,Tablas!A1503:B1504,2,0) ->  | L24: TARIFAS ANUALES
L25: Prima del asegurado titular : | N25: =(VLOOKUP($G$24,Tablas!$A$1205:$G$1271,3,TRUE))*'INGRESO DE DATOS'!$D$26+(Tablas!$Q$2) ->  | O25: =(VLOOKUP($G$24,Tablas!$A$1205:$G$1271,4,TRUE))*'INGRESO DE DATOS'!$D$26+(Tablas!$Q$2) ->  | P25: =(VLOOKUP($G$24,Tablas!$A$1205:$G$1271,5,TRUE))*'INGRESO DE DATOS'!$D$26+(Tablas!$Q$2) -> 
B26: Número de hijos en la póliza : | D26: =+'INGRESO DE DATOS'!$H$17 -> 0 | E26: Edad del (de la) cónyuge : | G26: =+'INGRESO DE DATOS'!$H$19 -> 0 | L26: Prima del (de la) cónyuge: | N26: =(IF($D$24=1,0,(VLOOKUP($G$26,Tablas!$A$1205:$G$1271,3,TRUE))))*'INGRESO DE DATOS'!$D$26+(IF($D$24=1,0,(Tablas!$Q$2))) ->  | O26: =(IF($D$24=1,0,(VLOOKUP($G$26,Tablas!$A$1205:$G$1271,4,TRUE))))*'INGRESO DE DATOS'!$D$26+(IF($D$24=1,0,(Tablas!$Q$2))) ->  | P26: =(IF($D$24=1,0,(VLOOKUP($G$26,Tablas!$A$1205:$G$1271,5,TRUE))))*'INGRESO DE DATOS'!$D$26+(IF($D$24=1,0,(Tablas!$Q$2))) -> 
L27: Prima del (de los) Hijo (s) : | N27: =IF($D$26=0,0,(VLOOKUP($D$26,Tablas!$A$1272:$G$1274,3,TRUE)))*'INGRESO DE DATOS'!$D$26 -> 0 | O27: =IF($D$26=0,0,(VLOOKUP($D$26,Tablas!$A$1272:$G$1274,4,TRUE)))*'INGRESO DE DATOS'!$D$26 -> 0 | P27: =IF($D$26=0,0,(VLOOKUP($D$26,Tablas!$A$1272:$G$1274,5,TRUE)))*'INGRESO DE DATOS'!$D$26 -> 0
B28: FECHA DE COTIZACION : | D28: =NOW() -> 2023-10-26T13:25:47.830 | L28: Total otros dependientes | N28: =Tablas!Q1206*'INGRESO DE DATOS'!$D$26 -> 0 | O28: =Tablas!R1206*'INGRESO DE DATOS'!$D$26 -> 0 | P28: =Tablas!S1206*'INGRESO DE DATOS'!$D$26 -> 0
L29: TOTAL PRIMA NETA : | N29: =SUM(N25:N28) ->  | O29: =SUM(O25:O28) -> 
L30: Costo administrativo anual : | N30: 937.5 | O30: 937.5 | P30: 937.5
L31: IVA (16%) : | N31: =+N29*16% ->  | O31: =+O29*16% ->  | P31: =+P29*16% -> 
L32: =IF('INGRESO DE DATOS'!$D$26=0.8,"Costo total, (-20% de descuento)",IF('INGRESO DE DATOS'!$D$26=0.9,"Costo total, (-10% de descuento)","Gran total anual")) -> Gran total anual | N32: =SUM(N29:N31) + N30*0.16 ->  | O32: =SUM(O29:O31) + O30*0.16 -> 
L34: TARIFAS SEMESTRALES
L35: Prima del asegurado titular : | N35: =N25*(1+Tablas!$K$4) ->  | O35: =O25*(1+Tablas!$K$4) ->  | P35: =P25*(1+Tablas!$K$4) -> 
L36: Prima del (de la) cónyuge: | N36: =N26*(1+Tablas!$K$4) ->  | O36: =O26*(1+Tablas!$K$4) ->  | P36: =P26*(1+Tablas!$K$4) -> 
L37: Prima del (de los) Hijo (s) : | N37: =N27*(1+Tablas!$K$4) -> 0 | O37: =O27*(1+Tablas!$K$4) -> 0 | P37: =P27*(1+Tablas!$K$4) -> 0
L38: Total otros dependientes | N38: =N28*(1+Tablas!$K$4) -> 0 | O38: =O28*(1+Tablas!$K$4) -> 0 | P38: =P28*(1+Tablas!$K$4) -> 0
L39: TOTAL PRIMA NETA : | N39: =SUM(N35:N38) ->  | O39: =SUM(O35:O38) -> 
L40: Costo administrativo anual : | N40: 937.5 | O40: 937.5 | P40: 937.5
L41: IVA (16%) : | N41: =SUM(N39:N40)*16% ->  | O41: =SUM(O39:O40)*16% -> 
L42: TOTAL primera cuota : | N42: =((N39/2)+N40)*1.16 ->  | O42: =((O39/2)+O40)*1.16 -> 
L43: Valor segunda cuota : | N43: =N39/2*1.16 ->  | O43: =O39/2*1.16 -> 
L44: =L32 -> Gran total anual | N44: =N42+N43 ->  | O44: =O42+O43 -> 
L46: TARIFAS TRIMESTRALES
L47: Prima del asegurado titular : | N47: =N25*(1+Tablas!$K$3) ->  | O47: =O25*(1+Tablas!$K$3) ->  | P47: =P25*(1+Tablas!$K$3) -> 
L48: Prima del (de la) cónyuge: | N48: =N26*(1+Tablas!$K$3) ->  | O48: =O26*(1+Tablas!$K$3) ->  | P48: =P26*(1+Tablas!$K$3) -> 
L49: Prima del (de los) Hijo (s) : | N49: =N27*(1+Tablas!$K$3) -> 0 | O49: =O27*(1+Tablas!$K$3) -> 0 | P49: =P27*(1+Tablas!$K$3) -> 0
L50: Total otros dependientes | N50: =N28*(1+Tablas!$K$3) -> 0 | O50: =O28*(1+Tablas!$K$3) -> 0 | P50: =P28*(1+Tablas!$K$3) -> 0
L51: TOTAL PRIMA NETA : | N51: =SUM(N47:N50) ->  | O51: =SUM(O47:O50) -> 
L52: Costo administrativo anual : | N52: 937.5 | O52: 937.5 | P52: 937.5
L53: IVA (16%) : | N53: =+N51*16% ->  | O53: =+O51*16% ->  | P53: =+P51*16% -> 
L54: TOTAL primera cuota : | N54: =((N51/4)+N52)*1.16 ->  | O54: =((O51/4)+O52)*1.16 -> 
L55: Valor cuota trimestral 2 a 4: | N55: =N51/4*1.16 ->  | O55: =O51/4*1.16 -> 
L56: =L44 -> Gran total anual | N56: =N54+(N55*3) ->  | O56: =O54+(O55*3) -> 
L58: TARIFAS MENSUALES
L59: Prima del asegurado titular : | N59: =N25*(1+Tablas!$K$2) ->  | O59: =O25*(1+Tablas!$K$2) ->  | P59: =P25*(1+Tablas!$K$2) -> 
B60: Tarifas validas a partir del 1 de marzo al 31 de diciembre del 2023. | L60: Prima del (de la) cónyuge: | N60: =N26*(1+Tablas!$K$2) ->  | O60: =O26*(1+Tablas!$K$2) ->  | P60: =P26*(1+Tablas!$K$2) -> 
B61: Promociones válidas al 31 de diciembre de 2023. | L61: Prima del (de los) Hijo (s) : | N61: =N27*(1+Tablas!$K$2) -> 0 | O61: =O27*(1+Tablas!$K$2) -> 0 | P61: =P27*(1+Tablas!$K$2) -> 0
B62: El 10% de descuento en productos Globales sobre prima neta será aplicable durante toda la vida de la póliza, siempre y cuando el asegurado no haga cambios en el plan y deducibles contratados. | L62: Total otros dependientes | N62: =N28*(1+Tablas!$K$2) -> 0 | O62: =O28*(1+Tablas!$K$2) -> 0 | P62: =P28*(1+Tablas!$K$2) -> 0
B63: 6 meses sin intereses sin cargo al agente para modalidad de pago anual durante el primer año póliza con tarjetas de crédito participantes: Afirme, Azteca, Bajío, Banjercito, Banorte, Banregio, BBVA, Citibanamex, Famsa, HSBC, Inbursa, Invex, IXE, Liverpool, Mifel, Multiva, Santander, Scotiabank, Sociedad de Facilidades Multirotativas y American Express. Promoción válida sólo para tarjetas emitidas en la República Mexicana. | L63: TOTAL PRIMA NETA : | N63: =SUM(N59:N62) ->  | O63: =SUM(O59:O62) -> 
B64: En caso de que el asegurado elija la promoción “Sin costo por pago fraccionado” no podrá optar por la promoción a meses sin intereses. | L64: Costo administrativo anual : | N64: 937.5 | O64: 937.5 | P64: 937.5
B65: Las pólizas contratadas cuentan con limitaciones y exclusiones las cuáles pueden ser consultadas en www.bupasalud.com.mx Para más información, llámanos al 55 5202-1701 ext 4 o envíanos un correo a: ventasdirectas@bupa.com.mx | L65: IVA (16%) : | N65: =+N63*16% ->  | O65: =+O63*16% ->  | P65: =+P63*16% -> 
B66: La presente cotización es de carácter informativo, no constituye una solicitud de seguro y/o el monto de la prima definitiva y/o las condiciones de la misma y/o una oferta de aseguramiento en términos del artículo 5to de la Ley Sobre el Contrato de Seguro. La emisión de la póliza asícomo posibles cambios en la tarifa están sujetos a valoración del riesgo de acuerdo con las políticas de Suscripción de Bupa México y es susceptible de modificaciones, por lo que Bupa podrá aceptar o negar el aseguramiento del riesgo propuesto. | L66: TOTAL primera cuota : | N66: =((N63/12)+N64)*1.16 ->  | O66: =((O63/12)+O64)*1.16 ->  | P66: =((P63/12)+P64)*1.16 -> 
L67: Valor cuota mensual 2 a 12 : | N67: =N63/12*1.16 ->  | O67: =O63/12*1.16 -> 
L68: =L56 -> Gran total anual | N68: =N66+(N67*11) ->  | O68: =O66+(O67*11) ->  | P68: =P66+(P67*11) -> 

Sheet Resumen tarifas
A17: Cotización de Seguro Médico - Bupa Global Health Plans
A19: Nombre del asegurado titular : | C19: =+'INGRESO DE DATOS'!$D$15 -> JUAN VIDAL
A21: Agencia / Agente : | C21: =+'INGRESO DE DATOS'!$D$29 -> Nombre del Agente
A23: Número de adultos en la póliza : | C23: ='INGRESO DE DATOS'!D17 -> 0 | E23: Edad del asegurado titular : | G23: ='INGRESO DE DATOS'!D19 -> 0
A26: Número de hijos en la póliza : | C26: ='INGRESO DE DATOS'!H17 -> 0 | E26: Edad del (de la) cónyuge : | G26: ='INGRESO DE DATOS'!H19 -> 0
D29: FECHA DE COTIZACION : | E29: =NOW() -> 2023-10-26T13:25:47.840
A33: Global Ultimate Health Plan
A34: Deducibles | C34: PLAN 1 | D34: PLAN 2 | E34: PLAN 3
A35: Dentro del país de residencia | C35: 0 | D35: 1000 | E35: 2000
A36: Fuera del país de residencia | C36: 0 | D36: 1000 | E36: 2000
C37: Tarifas Anuales
C38: =+'Global Ultimate Health Plan'!N32 ->  | D38: =+'Global Ultimate Health Plan'!O32 ->  | E38: =+'Global Ultimate Health Plan'!P32 -> 
C39: Tarifas Semestrales
C40: =+'Global Ultimate Health Plan'!N44 ->  | D40: =+'Global Ultimate Health Plan'!O44 ->  | E40: =+'Global Ultimate Health Plan'!P44 -> 
C41: Tarifas Trimestrales
C42: =+'Global Ultimate Health Plan'!N56 ->  | D42: =+'Global Ultimate Health Plan'!O56 ->  | E42: =+'Global Ultimate Health Plan'!P56 -> 
C43: Tarifas Mensuales
C44: =+'Global Ultimate Health Plan'!N68 ->  | D44: =+'Global Ultimate Health Plan'!O68 ->  | E44: =+'Global Ultimate Health Plan'!P68 -> 
A46: Global Elite Health Plan
A47: Deducibles | C47: PLAN 1 | D47: PLAN 2 | E47: PLAN 3 | F47: PLAN 4 | G47: PLAN 5
A48: Dentro del país de residencia | C48: 1000 | D48: 2000 | E48: 3500 | F48: 5000 | G48: 10000
A49: Fuera del país de residencia | C49: 1000 | D49: 2000 | E49: 3500 | F49: 5000 | G49: 10000
C50: Tarifas Anuales
C51: =+'Global Elite Health Plan'!M38 ->  | D51: =+'Global Elite Health Plan'!N38 ->  | E51: =+'Global Elite Health Plan'!O38 ->  | F51: =+'Global Elite Health Plan'!P38 ->  | G51: =+'Global Elite Health Plan'!Q38 -> 
C52: Tarifas Semestrales
C53: =+'Global Elite Health Plan'!M50 ->  | D53: =+'Global Elite Health Plan'!N50 ->  | E53: =+'Global Elite Health Plan'!O50 ->  | F53: =+'Global Elite Health Plan'!P50 ->  | G53: =+'Global Elite Health Plan'!Q50 -> 
C54: Tarifas Trimestrales
C55: =+'Global Elite Health Plan'!M62 ->  | D55: =+'Global Elite Health Plan'!N62 ->  | E55: =+'Global Elite Health Plan'!O62 ->  | F55: =+'Global Elite Health Plan'!P62 ->  | G55: =+'Global Elite Health Plan'!Q62 -> 
C56: Tarifas Mensuales
C57: =+'Global Elite Health Plan'!M74 ->  | D57: =+'Global Elite Health Plan'!N74 ->  | E57: =+'Global Elite Health Plan'!O74 ->  | F57: =+'Global Elite Health Plan'!P74 ->  | G57: =+'Global Elite Health Plan'!Q74 -> 
A59: Global Premier Health Plan
A60: Deducibles | C60: PLAN 1 | D60: PLAN 2 | E60: PLAN 3 | F60: PLAN 4
A61: Dentro del país de residencia | C61: 1000 | D61: 2000 | E61: 5000 | F61: 10000
A62: Fuera del país de residencia | C62: 1000 | D62: 2000 | E62: 5000 | F62: 10000
C63: Tarifas Anuales
C64: =+'Global Premier Health Plan'!N48 ->  | D64: =+'Global Premier Health Plan'!O48 ->  | E64: =+'Global Premier Health Plan'!P48 ->  | F64: =+'Global Premier Health Plan'!Q48 -> 
C65: Tarifas Semestrales
C66: =+'Global Premier Health Plan'!N60 ->  | D66: =+'Global Premier Health Plan'!O60 ->  | E66: =+'Global Premier Health Plan'!P60 ->  | F66: =+'Global Premier Health Plan'!Q60 -> 
C67: Tarifas Trimestrales
C68: =+'Global Premier Health Plan'!N72 ->  | D68: =+'Global Premier Health Plan'!O72 ->  | E68: =+'Global Premier Health Plan'!P72 ->  | F68: =+'Global Premier Health Plan'!Q72 -> 
C69: Tarifas Mensuales
C70: =+'Global Premier Health Plan'!N84 ->  | D70: =+'Global Premier Health Plan'!O84 ->  | E70: =+'Global Premier Health Plan'!P84 ->  | F70: =+'Global Premier Health Plan'!Q84 -> 
A72: Global Select Health Plan
A73: ESTE PRODUCTO NO CUENTA CON COBERTURA DE MATERNIDAD
A74: Deducibles | C74: PLAN A | D74: PLAN 1 | E74: PLAN 2 | F74: PLAN 3 | G74: PLAN 4
A75: Dentro del país de residencia | C75: 2000 | D75: 3500 | E75: 5000 | F75: 10000 | G75: 20000
A76: Fuera del país de residencia | C76: 2000 | D76: 3500 | E76: 5000 | F76: 10000 | G76: 20000
C77: Tarifas Anuales
C78: =+'Global Select Health Plan'!M45 ->  | D78: =+'Global Select Health Plan'!N45 ->  | E78: =+'Global Select Health Plan'!O45 ->  | F78: =+'Global Select Health Plan'!P45 ->  | G78: =+'Global Select Health Plan'!Q45 -> 
C79: Tarifas Semestrales
C80: =+'Global Select Health Plan'!M57 ->  | D80: =+'Global Select Health Plan'!N57 ->  | E80: =+'Global Select Health Plan'!O57 ->  | F80: =+'Global Select Health Plan'!P57 ->  | G80: =+'Global Select Health Plan'!Q57 -> 
C81: Tarifas Trimestrales
C82: =+'Global Select Health Plan'!M69 ->  | D82: =+'Global Select Health Plan'!N69 ->  | E82: =+'Global Select Health Plan'!O69 ->  | F82: =+'Global Select Health Plan'!P69 ->  | G82: =+'Global Select Health Plan'!Q69 -> 
C83: Tarifas Mensuales
C84: =+'Global Select Health Plan'!M81 ->  | D84: =+'Global Select Health Plan'!N81 ->  | E84: =+'Global Select Health Plan'!O81 ->  | F84: =+'Global Select Health Plan'!P81 ->  | G84: =+'Global Select Health Plan'!Q81 -> 
A86: Global Select PE Health Plan
A87: ESTE PRODUCTO NO CUENTA CON COBERTURA DE MATERNIDAD, NO APLICA DESCUENTO ESPECIAL
A88: Deducibles | C88: PLAN A | D88: PLAN 1 | E88: PLAN 2 | F88: PLAN 3 | G88: PLAN 4
A89: Dentro del país de residencia | C89: 2000 | D89: 3500 | E89: 5000 | F89: 10000 | G89: 20000
A90: Fuera del país de residencia | C90: 2000 | D90: 3500 | E90: 5000 | F90: 10000 | G90: 20000
C91: Tarifas Anuales
C92: =+'Global Select PE Health Plan'!M45 ->  | D92: =+'Global Select PE Health Plan'!N45 ->  | E92: =+'Global Select PE Health Plan'!O45 ->  | F92: =+'Global Select PE Health Plan'!P45 ->  | G92: =+'Global Select PE Health Plan'!Q45 -> 
C93: Tarifas Semestrales
C94: =+'Global Select PE Health Plan'!M57 ->  | D94: =+'Global Select PE Health Plan'!N57 ->  | E94: =+'Global Select PE Health Plan'!O57 ->  | F94: =+'Global Select PE Health Plan'!P57 ->  | G94: =+'Global Select PE Health Plan'!Q57 -> 
C95: Tarifas Trimestrales
C96: =+'Global Select PE Health Plan'!M69 ->  | D96: =+'Global Select PE Health Plan'!N69 ->  | E96: =+'Global Select PE Health Plan'!O69 ->  | F96: =+'Global Select PE Health Plan'!P69 ->  | G96: =+'Global Select PE Health Plan'!Q69 -> 
C97: Tarifas Mensuales
C98: =+'Global Select PE Health Plan'!M81 ->  | D98: =+'Global Select PE Health Plan'!N81 ->  | E98: =+'Global Select PE Health Plan'!O81 ->  | F98: =+'Global Select PE Health Plan'!P81 ->  | G98: =+'Global Select PE Health Plan'!Q81 -> 
A100: Este plan cuenta con los siguientes periodos de espera adicionales:
A101: PERÍODOS DE ESPERA
A102: Padecimientos de rodilla, ácido-pépticos, columna vertebral, nariz, senos paranasales, amígdalas, adenoides, hemorroides, hernias, tumoraciones mamarias (benignas y/o malignas), padecimientos anorrectales, prostáticos, ginecológicos, várices, insuficiencia del piso perineal, padecimientos de la vesícula y vías biliares, enfermedades articulares de las falanges de los pies, cataratas, litiasis renal y en vías urinarias. | G102: 6 meses
A103: Tratamiento contra el Cáncer. | G103: 6 meses
A104: Examen dental preventivo. | G104: 10 meses
A105: Trasplantes. | G105: 6 meses
A107: Cobertura de preexistencias. Quedarán cubiertas las preexistencias declaradas al momento de la solicitud con un período de espera de 2 años, independientemente de la aplicación de alguna extra prima o sobre deducible derivado de la suscripción. No aplica reconocimiento de antigüedad para reducir o eliminar los períodos de espera mencionados en este endoso.
A109: Global Major Medical Health Plan
A110: Deducibles | C110: PLAN 1 | D110: PLAN 2
A111: Dentro del país de residencia | C111: 10000 | D111: 20000
A112: Fuera del país de residencia | C112: 10000 | D112: 20000
C113: Tarifas Anuales
C114: ='Global Major Medical Health Pla'!M41 ->  | D114: ='Global Major Medical Health Pla'!N41 -> 
C115: Tarifas Semestrales
C116: ='Global Major Medical Health Pla'!M53 ->  | D116: ='Global Major Medical Health Pla'!N53 -> 
C117: Tarifas Trimestrales
C118: ='Global Major Medical Health Pla'!M65 ->  | D118: ='Global Major Medical Health Pla'!N65 -> 
C119: Tarifas Mensuales
C120: ='Global Major Medical Health Pla'!M77 ->  | D120: ='Global Major Medical Health Pla'!N77 -> 
A122: $937.5 de costo administrativo anual aplica a la primera cuota
A124: Tarifas validas a partir del 1 de marzo al 31 de diciembre del 2023.
A126: La presente cotización es de carácter informativo y no constituye el monto de la prima definitiva ni las condiciones de la misma. La emisión de la póliza está sujeta a valoración del riesgo y/o cambio en la tarifa por parte del área de Suscripción de Bupa y puede tener modificaciones por lo que no expresa compromiso legal para la cobertura del seguro. Este cotizador es válido del del 1 de Marzo del 2023 al 31 de Diciembre del 2023.

Sheet Tablas (hidden)
A2: BUPA GLOBAL ELITE | I2: FACTOR MENSUAL: | K2: =IF('INGRESO DE DATOS'!E23,0,0.09) -> 0.09 | M2: % Anteriores | N2: 0.0925 | P2: Usamed | Q2: 625
A3: TARIFAS ANUALES | I3: FACTOR TRIMESTRAL: | K3: =IF('INGRESO DE DATOS'!E23,0,0.075) -> 0.075 | N3: 0.26875 | U3: 1000
A4: EDAD | I4: FACTOR SEMIANUAL: | K4: =IF('INGRESO DE DATOS'!E23,0,0.045) -> 0.045 | N4: 0.5225 | U4: 2 | V4: 0 | W4: 0.045
C5: 1000 | D5: 2000 | E5: 3500 | F5: 5000 | G5: 10000 | I5: THIS COLUMN IS FOR THE 5% DISCOUNT | O5: Otros dependientes panel
A6: 18 | C6: 154112.5 | D6: 110962.5 | E6: 86300 | F6: 75512.5 | G6: 58562.5 | I6: 96337.5 | J6: 69712.5 | K6: 54087.5 | L6: 47025 | M6: 36650 | O6: Edad otros dependientes | P6: ID | Q6: 1000 | R6: 2000 | S6: 3500 | T6: 5000 | U6: 10000
A7: 19 | C7: 159300 | D7: 114687.5 | E7: 89200 | F7: 78050 | G7: 60537.5 | I7: 100062.5 | J7: 72400 | K7: 56187.5 | L7: 48812.5 | M7: 38075 | O7: ='INGRESO DE DATOS'!$L$16 -> 0 | P7: 1 | Q7: =IF(O7>0,(IF(O7>18,VLOOKUP(O7,$A$6:$G$72,3,FALSE),Tablas!$C$6)),0) -> 0 | R7: =IF(O7>0,(IF(O7>18,VLOOKUP(O7,$A$6:$G$72,4,FALSE),Tablas!$D$6)),0) -> 0 | S7: =IF(O7>0,(IF(O7>18,VLOOKUP(O7,$A$6:$G$72,5,FALSE),Tablas!$E$6)),0) -> 0 | T7: =IF(O7>0,(IF(O7>18,VLOOKUP(O7,$A$6:$G$72,6,FALSE),Tablas!$F$6)),0) -> 0 | U7: =IF(O7>0,(IF(O7>18,VLOOKUP(O7,$A$6:$G$72,7,FALSE),Tablas!$G$6)),0) -> 0
A8: 20 | C8: 164650 | D8: 118550 | E8: 92212.5 | F8: 80675 | G8: 62575 | I8: 104037.5 | J8: 75275 | K8: 58425 | L8: 50775 | M8: 39575 | O8: ='INGRESO DE DATOS'!$L$17 -> 0 | P8: 2 | Q8: =IF(O8>0,(IF(O8>18,VLOOKUP(O8,$A$6:$G$72,3,FALSE),Tablas!$C$6)),0) -> 0 | R8: =IF(O8>0,(IF(O8>18,VLOOKUP(O8,$A$6:$G$72,4,FALSE),Tablas!$D$6)),0) -> 0 | S8: =IF(O8>0,(IF(O8>18,VLOOKUP(O8,$A$6:$G$72,5,FALSE),Tablas!$E$6)),0) -> 0 | T8: =IF(O8>0,(IF(O8>18,VLOOKUP(O8,$A$6:$G$72,6,FALSE),Tablas!$F$6)),0) -> 0 | U8: =IF(O8>0,(IF(O8>18,VLOOKUP(O8,$A$6:$G$72,7,FALSE),Tablas!$G$6)),0) -> 0
A9: 21 | C9: 170200 | D9: 122537.5 | E9: 95312.5 | F9: 83400 | G9: 64675 | I9: 107950 | J9: 78100 | K9: 60550 | L9: 52612.5 | M9: 41012.5 | O9: ='INGRESO DE DATOS'!$L$18 -> 0 | P9: 3 | Q9: =IF(O9>0,(IF(O9>18,VLOOKUP(O9,$A$6:$G$72,3,FALSE),Tablas!$C$6)),0) -> 0 | R9: =IF(O9>0,(IF(O9>18,VLOOKUP(O9,$A$6:$G$72,4,FALSE),Tablas!$D$6)),0) -> 0 | S9: =IF(O9>0,(IF(O9>18,VLOOKUP(O9,$A$6:$G$72,5,FALSE),Tablas!$E$6)),0) -> 0 | T9: =IF(O9>0,(IF(O9>18,VLOOKUP(O9,$A$6:$G$72,6,FALSE),Tablas!$F$6)),0) -> 0 | U9: =IF(O9>0,(IF(O9>18,VLOOKUP(O9,$A$6:$G$72,7,FALSE),Tablas!$G$6)),0) -> 0
A10: 22 | C10: 175925 | D10: 126662.5 | E10: 98512.5 | F10: 86200 | G10: 66850 | I10: 111662.5 | J10: 80750 | K10: 62612.5 | L10: 54412.5 | M10: 42400 | O10: ='INGRESO DE DATOS'!$L$19 -> 0 | P10: 4 | Q10: =IF(O10>0,(IF(O10>18,VLOOKUP(O10,$A$6:$G$72,3,FALSE),Tablas!$C$6)),0) -> 0 | R10: =IF(O10>0,(IF(O10>18,VLOOKUP(O10,$A$6:$G$72,4,FALSE),Tablas!$D$6)),0) -> 0 | S10: =IF(O10>0,(IF(O10>18,VLOOKUP(O10,$A$6:$G$72,5,FALSE),Tablas!$E$6)),0) -> 0 | T10: =IF(O10>0,(IF(O10>18,VLOOKUP(O10,$A$6:$G$72,6,FALSE),Tablas!$F$6)),0) -> 0 | U10: =IF(O10>0,(IF(O10>18,VLOOKUP(O10,$A$6:$G$72,7,FALSE),Tablas!$G$6)),0) -> 0
A11: 23 | C11: 181837.5 | D11: 130925 | E11: 101825 | F11: 89100 | G11: 69100 | I11: 115587.5 | J11: 83612.5 | K11: 64825 | L11: 56312.5 | M11: 43875 | O11: ='INGRESO DE DATOS'!$L$20 -> 0 | P11: 5 | Q11: =IF(O11>0,(IF(O11>18,VLOOKUP(O11,$A$6:$G$72,3,FALSE),Tablas!$C$6)),0) -> 0 | R11: =IF(O11>0,(IF(O11>18,VLOOKUP(O11,$A$6:$G$72,4,FALSE),Tablas!$D$6)),0) -> 0 | S11: =IF(O11>0,(IF(O11>18,VLOOKUP(O11,$A$6:$G$72,5,FALSE),Tablas!$E$6)),0) -> 0 | T11: =IF(O11>0,(IF(O11>18,VLOOKUP(O11,$A$6:$G$72,6,FALSE),Tablas!$F$6)),0) -> 0 | U11: =IF(O11>0,(IF(O11>18,VLOOKUP(O11,$A$6:$G$72,7,FALSE),Tablas!$G$6)),0) -> 0
A12: 24 | C12: 187962.5 | D12: 135325 | E12: 105262.5 | F12: 92100 | G12: 71425 | I12: 119475 | J12: 86375 | K12: 66975 | L12: 58187.5 | M12: 45312.5 | P12: Total | Q12: =SUM(Q7:Q11) -> 0 | R12: =SUM(R7:R11) -> 0 | S12: =SUM(S7:S11) -> 0 | T12: 0 | U12: 0
A13: 25 | C13: 194287.5 | D13: 139887.5 | E13: 108800 | F13: 95200 | G13: 73825 | I13: 123187.5 | J13: 89037.5 | K13: 69025 | L13: 59975 | M13: 46700
A14: 26 | C14: 200825 | D14: 144587.5 | E14: 112462.5 | F14: 98400 | G14: 76312.5 | I14: 127100 | J14: 91887.5 | K14: 71225 | L14: 61875 | M14: 48187.5
A15: 27 | C15: 207575 | D15: 149462.5 | E15: 116250 | F15: 101712.5 | G15: 78875 | I15: 131000 | J15: 94687.5 | K15: 73400 | L15: 63762.5 | M15: 49650
A16: 28 | C16: 214562.5 | D16: 154487.5 | E16: 120150 | F16: 105137.5 | G16: 81537.5 | I16: 135000 | J16: 97525 | K16: 75625 | L16: 65675 | M16: 51137.5
A17: 29 | C17: 221787.5 | D17: 159687.5 | E17: 124200 | F17: 108675 | G17: 84275 | I17: 140075 | J17: 101187.5 | K17: 78437.5 | L17: 68125 | M17: 53025
A18: 30 | C18: 229250 | D18: 165062.5 | E18: 128375 | F18: 112325 | G18: 87112.5 | I18: 145362.5 | J18: 105012.5 | K18: 81337.5 | L18: 70662.5 | M18: 55000
A19: 31 | C19: 236962.5 | D19: 170612.5 | E19: 132700 | F19: 116112.5 | G19: 90050 | I19: 150587.5 | J19: 108800 | K19: 84300 | L19: 73200 | M19: 56975
A20: 32 | C20: 244937.5 | D20: 176350 | E20: 137162.5 | F20: 120012.5 | G20: 93075 | I20: 155975 | J20: 112637.5 | K20: 87262.5 | L20: 75800 | M20: 58975
A21: 33 | C21: 253175 | D21: 182287.5 | E21: 141775 | F21: 124050 | G21: 96212.5 | I21: 159162.5 | J21: 114950 | K21: 89037.5 | L21: 77312.5 | M21: 60150
A22: 34 | C22: 263012.5 | D22: 189362.5 | E22: 147287.5 | F22: 128875 | G22: 99950 | I22: 162550 | J22: 117387.5 | K22: 90900 | L22: 78950 | M22: 61412.5
A23: 35 | C23: 267325 | D23: 192475 | E23: 149700 | F23: 130987.5 | G23: 101587.5 | I23: 165900 | J23: 119800 | K23: 92787.5 | L23: 80575 | M23: 62675
A24: 36 | C24: 271712.5 | D24: 195637.5 | E24: 152162.5 | F24: 133137.5 | G24: 103250 | I24: 169262.5 | J24: 122237.5 | K24: 94650 | L24: 82175 | M24: 63937.5
A25: 37 | C25: 276175 | D25: 198850 | E25: 154662.5 | F25: 135325 | G25: 104950 | I25: 172612.5 | J25: 124637.5 | K25: 96512.5 | L25: 83787.5 | M25: 65187.5
A26: 38 | C26: 280700 | D26: 202112.5 | E26: 157200 | F26: 137550 | G26: 106662.5 | I26: 175550 | J26: 126737.5 | K26: 98112.5 | L26: 85187.5 | M26: 66262.5
A27: 39 | C27: 285312.5 | D27: 205425 | E27: 159775 | F27: 139800 | G27: 108425 | I27: 178275 | J27: 128737.5 | K27: 99675 | L27: 86550 | M27: 67312.5
A28: 40 | C28: 289987.5 | D28: 208800 | E28: 162400 | F28: 142100 | G28: 110200 | I28: 181162.5 | J28: 130812.5 | K28: 101300 | L28: 87937.5 | M28: 68387.5
A29: 41 | C29: 294750 | D29: 212225 | E29: 165062.5 | F29: 144425 | G29: 112000 | I29: 184012.5 | J29: 132825 | K29: 102850 | L29: 89287.5 | M29: 69425
A30: 42 | C30: 299587.5 | D30: 215700 | E30: 167775 | F30: 146800 | G30: 113850 | I30: 186887.5 | J30: 134937.5 | K30: 104475 | L30: 90687.5 | M30: 70537.5
A31: 43 | C31: 304500 | D31: 219250 | E31: 170525 | F31: 149212.5 | G31: 115712.5 | I31: 190275 | J31: 137350 | K31: 106350 | L31: 92325 | M31: 71812.5
A32: 44 | C32: 309500 | D32: 222837.5 | E32: 173325 | F32: 151650 | G32: 117612.5 | I32: 193787.5 | J32: 139900 | K32: 108287.5 | L32: 94000 | M32: 73100
A33: 45 | C33: 314575 | D33: 226500 | E33: 176162.5 | F33: 154150 | G33: 119537.5 | I33: 197187.5 | J33: 142337.5 | K33: 110200 | L33: 95662.5 | M33: 74375
A34: 46 | C34: 319750 | D34: 230212.5 | E34: 179050 | F34: 156675 | G34: 121500 | I34: 200650 | J34: 144837.5 | K34: 112087.5 | L34: 97312.5 | M34: 75662.5
A35: 47 | C35: 324987.5 | D35: 234000 | E35: 182000 | F35: 159250 | G35: 123500 | I35: 204037.5 | J35: 147250 | K35: 113987.5 | L35: 98950 | M35: 76925
A36: 48 | C36: 330325 | D36: 237837.5 | E36: 184975 | F36: 161862.5 | G36: 125525 | I36: 208800 | J36: 150700 | K36: 117137.5 | L36: 101687.5 | M36: 79050
A37: 49 | C37: 337737.5 | D37: 243175 | E37: 189137.5 | F37: 165487.5 | G37: 128337.5 | I37: 213575 | J37: 154125 | K37: 120275 | L37: 104412.5 | M37: 81150
A38: 50 | C38: 350287.5 | D38: 252212.5 | E38: 196162.5 | F38: 171637.5 | G38: 133112.5 | I38: 219462.5 | J38: 158362.5 | K38: 123562.5 | L38: 107262.5 | M38: 83362.5
A39: 51 | C39: 363312.5 | D39: 261587.5 | E39: 203450 | F39: 178025 | G39: 138062.5 | I39: 225062.5 | J39: 162362.5 | K39: 126725 | L39: 110000 | M39: 85512.5
A40: 52 | C40: 376812.5 | D40: 271300 | E40: 211012.5 | F40: 184637.5 | G40: 143187.5 | I40: 230700 | J40: 166450 | K40: 129912.5 | L40: 112737.5 | M40: 87637.5
A41: 53 | C41: 390825 | D41: 281387.5 | E41: 218862.5 | F41: 191500 | G41: 148512.5 | I41: 241150 | J41: 173987.5 | K41: 135712.5 | L41: 117787.5 | M41: 91562.5
A42: 54 | C42: 405350 | D42: 291850 | E42: 227000 | F42: 198625 | G42: 154025 | I42: 251462.5 | J42: 181412.5 | K42: 141487.5 | L42: 122800 | M42: 95450
A43: 55 | C43: 420412.5 | D43: 302700 | E43: 235425 | F43: 206000 | G43: 159762.5 | I43: 261975 | J43: 188975 | K43: 147387.5 | L43: 127937.5 | M43: 99387.5
A44: 56 | C44: 435975 | D44: 313900 | E44: 244150 | F44: 213625 | G44: 165675 | I44: 272400 | J44: 196487.5 | K44: 153250 | L44: 132987.5 | M44: 103350
A45: 57 | C45: 459925 | D45: 331150 | E45: 257562.5 | F45: 225362.5 | G45: 174775 | I45: 282900 | J45: 204050 | K45: 159125 | L45: 138087.5 | M45: 107287.5
A46: 58 | C46: 485200 | D46: 349337.5 | E46: 271712.5 | F46: 237750 | G46: 184375 | I46: 300812.5 | J46: 216937.5 | K46: 169162.5 | L46: 146800 | M46: 114025
A47: 59 | C47: 511850 | D47: 368537.5 | E47: 286637.5 | F47: 250812.5 | G47: 194500 | I47: 318700 | J47: 229837.5 | K47: 179175 | L47: 155487.5 | M47: 120775
A48: 60 | C48: 539975 | D48: 388787.5 | E48: 302387.5 | F48: 264587.5 | G48: 205187.5 | I48: 336762.5 | J48: 242825 | K48: 189312.5 | L48: 164275 | M48: 127575
A49: 61 | C49: 569650 | D49: 410150 | E49: 319000 | F49: 279125 | G49: 216462.5 | I49: 354600 | J49: 255637.5 | K49: 199287.5 | L49: 172912.5 | M49: 134287.5
A50: 62 | C50: 600950 | D50: 432687.5 | E50: 336525 | F50: 294462.5 | G50: 228362.5 | I50: 372650 | J50: 268662.5 | K50: 209425 | L50: 181700 | M50: 141125
A51: 63 | C51: 633962.5 | D51: 456450 | E51: 355025 | F51: 310637.5 | G51: 240912.5 | I51: 400437.5 | J51: 288662.5 | K51: 225025 | L51: 195225 | M51: 151587.5
A52: 64 | C52: 682612.5 | D52: 491487.5 | E52: 382262.5 | F52: 334487.5 | G52: 259400 | I52: 428237.5 | J52: 308712.5 | K52: 240625 | L52: 208750 | M52: 162087.5
A53: 65 | C53: 726537.5 | D53: 523112.5 | E53: 406862.5 | F53: 356000 | G53: 276087.5 | I53: 456125 | J53: 328750 | K53: 256200 | L53: 222287.5 | M53: 172587.5
A54: 66 | C54: 773300 | D54: 556775 | E54: 433050 | F54: 378912.5 | G54: 293850 | I54: 483887.5 | J54: 348750 | K54: 271800 | L54: 235787.5 | M54: 183050
A55: 67 | C55: 823050 | D55: 592600 | E55: 460912.5 | F55: 403300 | G55: 312762.5 | I55: 511837.5 | J55: 368875 | K55: 287450 | L55: 249350 | M55: 193575
A56: 68 | C56: 876012.5 | D56: 630737.5 | E56: 490575 | F56: 429250 | G56: 332887.5 | I56: 550312.5 | J56: 396600 | K56: 309000 | L56: 268025 | M56: 208062.5
A57: 69 | C57: 932387.5 | D57: 671325 | E57: 522137.5 | F57: 456875 | G57: 354312.5 | I57: 588925 | J57: 424387.5 | K57: 330650 | L57: 286812.5 | M57: 222612.5
A58: 70 | C58: 992387.5 | D58: 714525 | E58: 555737.5 | F58: 486275 | G58: 377112.5 | I58: 627587.5 | J58: 452237.5 | K58: 352325 | L58: 305587.5 | M58: 237212.5
A59: 71 | C59: 1068962.5 | D59: 769650 | E59: 598625 | F59: 523787.5 | G59: 406200 | I59: 666325 | J59: 480100 | K59: 374050 | L59: 324437.5 | M59: 251800
A60: 72 | C60: 1128412.5 | D60: 812462.5 | E60: 631912.5 | F60: 552925 | G60: 428800 | I60: 704950 | J60: 507912.5 | K60: 395700 | L60: 343200 | M60: 266362.5
A61: 73 | C61: 1191162.5 | D61: 857637.5 | E61: 667050 | F61: 583675 | G61: 452637.5 | I61: 750825 | J61: 540950 | K61: 421375 | L61: 365475 | M61: 283625
A62: 74 | C62: 1257412.5 | D62: 905337.5 | E62: 704150 | F62: 616125 | G62: 477812.5 | I62: 796675 | J62: 573987.5 | K62: 447100 | L62: 387787.5 | M62: 300937.5
A63: 75 | C63: 1327337.5 | D63: 955687.5 | E63: 743312.5 | F63: 650400 | G63: 504387.5 | I63: 842500 | J63: 606987.5 | K63: 472775 | L63: 410050 | M63: 318200
A64: 76 | C64: 1401150 | D64: 1008825 | E64: 784650 | F64: 686562.5 | G64: 532437.5 | I64: 888400 | J64: 640000 | K64: 498512.5 | L64: 432375 | M64: 335525
A65: 77 | C65: 1479075 | D65: 1064937.5 | E65: 828275 | F65: 724750 | G65: 562050 | I65: 934237.5 | J65: 673000 | K65: 524187.5 | L65: 454612.5 | M65: 352762.5
A66: 78 | C66: 1561325 | D66: 1124150 | E66: 874337.5 | F66: 765050 | G66: 593300 | I66: 981025 | J66: 706700 | K66: 550400 | L66: 477362.5 | M66: 370412.5
A67: 79 | C67: 1648150 | D67: 1186675 | E67: 922962.5 | F67: 807600 | G67: 626300 | I67: 1028037.5 | J67: 740525 | K67: 576737.5 | L67: 500200 | M67: 388125
A68: 80 | C68: 1719712.5 | D68: 1238187.5 | E68: 963037.5 | F68: 842662.5 | G68: 653487.5 | I68: 1075075 | J68: 774425 | K68: 603150 | L68: 523112.5 | M68: 405862.5
A69: 81 | C69: 1786900 | D69: 1286562.5 | E69: 1000662.5 | F69: 875575 | G69: 679025 | I69: 1121900 | J69: 808125 | K69: 629387.5 | L69: 545875 | M69: 423537.5
A70: 82 | C70: 1856712.5 | D70: 1336825 | E70: 1039750 | F70: 909787.5 | G70: 705550 | I70: 1168887.5 | J70: 841962.5 | K70: 655737.5 | L70: 568712.5 | M70: 441237.5
A71: 83 | C71: 1929250 | D71: 1389062.5 | E71: 1080375 | F71: 945325 | G71: 733112.5 | I71: 1215912.5 | J71: 875825 | K71: 682100 | L71: 591550 | M71: 458975
A72: 84 | B72: o más | C72: 2004625 | D72: 1443325 | E72: 1122587.5 | F72: 982262.5 | G72: 761750 | I72: 1262825 | J72: 909600 | K72: 708350 | L72: 614325 | M72: 476637.5
A73: 1 | B73: Hijo | C73: 63287.5 | D73: 45562.5 | E73: 35437.5 | F73: 31012.5 | G73: 24050 | I73: 39537.5 | J73: 28475 | K73: 23362.5 | L73: 20237.5 | M73: 15700
A74: 2 | B74: Hijos | C74: 99712.5 | D74: 71800 | E74: 55837.5 | F74: 48862.5 | G74: 37887.5 | I74: 62287.5 | J74: 44862.5 | K74: 36750 | L74: 31875 | M74: 24712.5
A75: 3 | B75: Hijos o más | C75: 145487.5 | D75: 104750 | E75: 81475 | F75: 71287.5 | G75: 55287.5 | I75: 90862.5 | J75: 65412.5 | K75: 53612.5 | L75: 46487.5 | M75: 36062.5
A77: BUPA GLOBAL ELITE - MENSUALES
A78: EDAD
C79: 1000 | D79: 2000 | E79: 3500
A80: 18 | C80: =C6*$K$2 -> 13870.125 | D80: =D6*$K$2 -> 9986.625 | E80: 7767 | F80: 6796.125 | G80: 5270.625
A81: 19 | C81: =C7*$K$2 -> 14337 | D81: 10321.875 | E81: 8028 | F81: 7024.5 | G81: 5448.375
A82: 20 | C82: =C8*$K$2 -> 14818.5 | D82: 10669.5 | E82: 8299.125 | F82: 7260.75 | G82: 5631.75
A83: 21 | C83: =C9*$K$2 -> 15318 | D83: 11028.375 | E83: 8578.125 | F83: 7506 | G83: 5820.75
A84: 22 | C84: =C10*$K$2 -> 15833.25 | D84: 11399.625 | E84: 8866.125 | F84: 7758 | G84: 6016.5
A85: 23 | C85: =C11*$K$2 -> 16365.375 | D85: 11783.25 | E85: 9164.25 | F85: 8019 | G85: 6219
A86: 24 | C86: =C12*$K$2 -> 16916.625 | D86: 12179.25 | E86: 9473.625 | F86: 8289 | G86: 6428.25
A87: 25 | C87: =C13*$K$2 -> 17485.875 | D87: 12589.875 | E87: 9792 | F87: 8568 | G87: 6644.25
A88: 26 | C88: =C14*$K$2 -> 18074.25 | D88: 13012.875 | E88: 10121.625 | F88: 8856 | G88: 6868.125
A89: 27 | C89: =C15*$K$2 -> 18681.75 | D89: 13451.625 | E89: 10462.5 | F89: 9154.125 | G89: 7098.75
A90: 28 | C90: =C16*$K$2 -> 19310.625 | D90: 13903.875 | E90: 10813.5 | F90: 9462.375 | G90: 7338.375
A91: 29 | C91: =C17*$K$2 -> 19960.875 | D91: 14371.875 | E91: 11178 | F91: 9780.75 | G91: 7584.75
A92: 30 | C92: =C18*$K$2 -> 20632.5 | D92: 14855.625 | E92: 11553.75 | F92: 10109.25 | G92: 7840.125
A93: 31 | C93: =C19*$K$2 -> 21326.625 | D93: 15355.125 | E93: 11943 | F93: 10450.125 | G93: 8104.5
A94: 32 | C94: =C20*$K$2 -> 22044.375 | D94: 15871.5 | E94: 12344.625 | F94: 10801.125 | G94: 8376.75
A95: 33 | C95: =C21*$K$2 -> 22785.75 | D95: 16405.875 | E95: 12759.75 | F95: 11164.5 | G95: 8659.125
A96: 34 | C96: =C22*$K$2 -> 23671.125 | D96: 17042.625 | E96: 13255.875 | F96: 11598.75 | G96: 8995.5
A97: 35 | C97: =C23*$K$2 -> 24059.25 | D97: 17322.75 | E97: 13473 | F97: 11788.875 | G97: 9142.875
A98: 36 | C98: =C24*$K$2 -> 24454.125 | D98: 17607.375 | E98: 13694.625 | F98: 11982.375 | G98: 9292.5
A99: 37 | C99: =C25*$K$2 -> 24855.75 | D99: 17896.5 | E99: 13919.625 | F99: 12179.25 | G99: 9445.5
A100: 38 | C100: =C26*$K$2 -> 25263 | D100: 18190.125 | E100: 14148 | F100: 12379.5 | G100: 9599.625
A101: 39 | C101: =C27*$K$2 -> 25678.125 | D101: 18488.25 | E101: 14379.75 | F101: 12582 | G101: 9758.25
A102: 40 | C102: =C28*$K$2 -> 26098.875 | D102: 18792 | E102: 14616 | F102: 12789 | G102: 9918
A103: 41 | C103: =C29*$K$2 -> 26527.5 | D103: 19100.25 | E103: 14855.625 | F103: 12998.25 | G103: 10080
A104: 42 | C104: =C30*$K$2 -> 26962.875 | D104: 19413 | E104: 15099.75 | F104: 13212 | G104: 10246.5
A105: 43 | C105: =C31*$K$2 -> 27405 | D105: 19732.5 | E105: 15347.25 | F105: 13429.125 | G105: 10414.125
A106: 44 | C106: =C32*$K$2 -> 27855 | D106: 20055.375 | E106: 15599.25 | F106: 13648.5 | G106: 10585.125
A107: 45 | C107: =C33*$K$2 -> 28311.75 | D107: 20385 | E107: 15854.625 | F107: 13873.5 | G107: 10758.375
A108: 46 | C108: =C34*$K$2 -> 28777.5 | D108: 20719.125 | E108: 16114.5 | F108: 14100.75 | G108: 10935
A109: 47 | C109: =C35*$K$2 -> 29248.875 | D109: 21060 | E109: 16380 | F109: 14332.5 | G109: 11115
A110: 48 | C110: =C36*$K$2 -> 29729.25 | D110: 21405.375 | E110: 16647.75 | F110: 14567.625 | G110: 11297.25
A111: 49 | C111: =C37*$K$2 -> 30396.375 | D111: 21885.75 | E111: 17022.375 | F111: 14893.875 | G111: 11550.375
A112: 50 | C112: =C38*$K$2 -> 31525.875 | D112: 22699.125 | E112: 17654.625 | F112: 15447.375 | G112: 11980.125
A113: 51 | C113: =C39*$K$2 -> 32698.125 | D113: 23542.875 | E113: 18310.5 | F113: 16022.25 | G113: 12425.625
A114: 52 | C114: =C40*$K$2 -> 33913.125 | D114: 24417 | E114: 18991.125 | F114: 16617.375 | G114: 12886.875
A115: 53 | C115: =C41*$K$2 -> 35174.25 | D115: 25324.875 | E115: 19697.625 | F115: 17235 | G115: 13366.125
A116: 54 | C116: =C42*$K$2 -> 36481.5 | D116: 26266.5 | E116: 20430 | F116: 17876.25 | G116: 13862.25
A117: 55 | C117: =C43*$K$2 -> 37837.125 | D117: 27243 | E117: 21188.25 | F117: 18540 | G117: 14378.625
A118: 56 | C118: =C44*$K$2 -> 39237.75 | D118: 28251 | E118: 21973.5 | F118: 19226.25 | G118: 14910.75
A119: 57 | C119: =C45*$K$2 -> 41393.25 | D119: 29803.5 | E119: 23180.625 | F119: 20282.625 | G119: 15729.75
A120: 58 | C120: =C46*$K$2 -> 43668 | D120: 31440.375 | E120: 24454.125 | F120: 21397.5 | G120: 16593.75
A121: 59 | C121: =C47*$K$2 -> 46066.5 | D121: 33168.375 | E121: 25797.375 | F121: 22573.125 | G121: 17505
A122: 60 | C122: =C48*$K$2 -> 48597.75 | D122: 34990.875 | E122: 27214.875 | F122: 23812.875 | G122: 18466.875
A123: 61 | C123: =C49*$K$2 -> 51268.5 | D123: 36913.5 | E123: 28710 | F123: 25121.25 | G123: 19481.625
A124: 62 | C124: =C50*$K$2 -> 54085.5 | D124: 38941.875 | E124: 30287.25 | F124: 26501.625 | G124: 20552.625
A125: 63 | C125: =C51*$K$2 -> 57056.625 | D125: 41080.5 | E125: 31952.25 | F125: 27957.375 | G125: 21682.125
A126: 64 | C126: =C52*$K$2 -> 61435.125 | D126: 44233.875 | E126: 34403.625 | F126: 30103.875 | G126: 23346
A127: 65 | C127: =C53*$K$2 -> 65388.375 | D127: 47080.125 | E127: 36617.625 | F127: 32040 | G127: 24847.875
A128: 66 | C128: =C54*$K$2 -> 69597 | D128: 50109.75 | E128: 38974.5 | F128: 34102.125 | G128: 26446.5
A129: 67 | C129: =C55*$K$2 -> 74074.5 | D129: 53334 | E129: 41482.125 | F129: 36297 | G129: 28148.625
A130: 68 | C130: =C56*$K$2 -> 78841.125 | D130: 56766.375 | E130: 44151.75 | F130: 38632.5 | G130: 29959.875
A131: 69 | C131: =C57*$K$2 -> 83914.875 | D131: 60419.25 | E131: 46992.375 | F131: 41118.75 | G131: 31888.125
A132: 70 | C132: =C58*$K$2 -> 89314.875 | D132: 64307.25 | E132: 50016.375 | F132: 43764.75 | G132: 33940.125
A133: 71 | C133: =C59*$K$2 -> 96206.625 | D133: 69268.5 | E133: 53876.25 | F133: 47140.875 | G133: 36558
A134: 72 | C134: =C60*$K$2 -> 101557.125 | D134: 73121.625 | E134: 56872.125 | F134: 49763.25 | G134: 38592
A135: 73 | C135: =C61*$K$2 -> 107204.625 | D135: 77187.375 | E135: 60034.5 | F135: 52530.75 | G135: 40737.375
A136: 74 | C136: =C62*$K$2 -> 113167.125 | D136: 81480.375 | E136: 63373.5 | F136: 55451.25 | G136: 43003.125
A137: 75 | C137: =C63*$K$2 -> 119460.375 | D137: 86011.875 | E137: 66898.125 | F137: 58536 | G137: 45394.875
A138: 76 | C138: =C64*$K$2 -> 126103.5 | D138: 90794.25 | E138: 70618.5 | F138: 61790.625 | G138: 47919.375
A139: 77 | C139: =C65*$K$2 -> 133116.75 | D139: 95844.375 | E139: 74544.75 | F139: 65227.5 | G139: 50584.5
A140: 78 | C140: =C66*$K$2 -> 140519.25 | D140: 101173.5 | E140: 78690.375 | F140: 68854.5 | G140: 53397
A141: 79 | C141: =C67*$K$2 -> 148333.5 | D141: 106800.75 | E141: 83066.625 | F141: 72684 | G141: 56367
A142: 80 | C142: =C68*$K$2 -> 154774.125 | D142: 111436.875 | E142: 86673.375 | F142: 75839.625 | G142: 58813.875
A143: 81 | C143: =C69*$K$2 -> 160821 | D143: 115790.625 | E143: 90059.625 | F143: 78801.75 | G143: 61112.25
A144: 82 | C144: =C70*$K$2 -> 167104.125 | D144: 120314.25 | E144: 93577.5 | F144: 81880.875 | G144: 63499.5
A145: 83 | C145: =C71*$K$2 -> 173632.5 | D145: 125015.625 | E145: 97233.75 | F145: 85079.25 | G145: 65980.125
A146: 84 | B146: o más | C146: =C72*$K$2 -> 180416.25 | D146: 129899.25 | E146: 101032.875 | F146: 88403.625 | G146: 68557.5
A147: 1 | B147: Hijo | C147: =C73*$K$2 -> 5695.875 | D147: 4100.625 | E147: 3189.375 | F147: 2791.125 | G147: 2164.5
A148: 2 | B148: Hijos | C148: =C74*$K$2 -> 8974.125 | D148: 6462 | E148: 5025.375 | F148: 4397.625 | G148: 3409.875
A149: 3 | B149: Hijos o más | C149: =C75*$K$2 -> 13093.875 | D149: 9427.5 | E149: 7332.75 | F149: 6415.875 | G149: 4975.875
A151: BUPA GLOBAL PREMIER
A152: TARIFAS ANUALES
A153: EDAD
C154: 1000 | D154: 2000 | E154: 5000 | F154: 10000 | O154: Otros dependientes panel
A155: 18 | C155: 100012.5 | D155: 72525 | E155: 52187.5 | F155: 38975 | I155: 62975 | J155: 45637.5 | K155: 32862.5 | L155: 24662.5 | N155: 59826.25 | O155: Edad otros dependientes | P155: ID | Q155: 1000 | R155: 2000 | S155: 5000 | T155: 10000 | U155: 10000
A156: 19 | C156: 103387.5 | D156: 74962.5 | E156: 53950 | F156: 40287.5 | I156: 65312.5 | J156: 47312.5 | K156: 34050 | L156: 25562.5 | N156: 62046.875 | O156: ='INGRESO DE DATOS'!$L$16 -> 0 | P156: 1 | Q156: =IF(O156>0,(IF(O156>18,VLOOKUP(O156,$A$155:$G$221,3,FALSE),Tablas!$C$155)),0) -> 0 | R156: =IF(O156>0,(IF(O156>18,VLOOKUP(O156,$A$155:$G$221,4,FALSE),Tablas!$D$155)),0) -> 0 | S156: =IF(O156>0,(IF(O156>18,VLOOKUP(O156,$A$155:$G$221,5,FALSE),Tablas!$E$155)),0) -> 0 | T156: =IF(O156>0,(IF(O156>18,VLOOKUP(O156,$A$155:$G$221,6,FALSE),Tablas!$F$155)),0) -> 0 | U156: =IF(O156>0,(IF(O156>18,VLOOKUP(O156,$A$155:$G$221,7,FALSE),Tablas!$G$155)),0) -> 0
A157: 20 | C157: 106862.5 | D157: 77487.5 | E157: 55762.5 | F157: 41637.5 | I157: 67862.5 | J157: 49150 | K157: 35350 | L157: 26525 | N157: 64469.375 | O157: ='INGRESO DE DATOS'!$L$17 -> 0 | P157: 2 | Q157: =IF(O157>0,(IF(O157>18,VLOOKUP(O157,$A$155:$G$221,3,FALSE),Tablas!$C$155)),0) -> 0 | R157: =IF(O157>0,(IF(O157>18,VLOOKUP(O157,$A$155:$G$221,4,FALSE),Tablas!$D$155)),0) -> 0 | S157: =IF(O157>0,(IF(O157>18,VLOOKUP(O157,$A$155:$G$221,5,FALSE),Tablas!$E$155)),0) -> 0 | T157: =IF(O157>0,(IF(O157>18,VLOOKUP(O157,$A$155:$G$221,6,FALSE),Tablas!$F$155)),0) -> 0 | U157: =IF(O157>0,(IF(O157>18,VLOOKUP(O157,$A$155:$G$221,7,FALSE),Tablas!$G$155)),0) -> 0
A158: 21 | C158: 110450 | D158: 80087.5 | E158: 57637.5 | F158: 43037.5 | I158: 70437.5 | J158: 51012.5 | K158: 36675 | L158: 27500 | N158: 66915.625 | O158: ='INGRESO DE DATOS'!$L$18 -> 0 | P158: 3 | Q158: =IF(O158>0,(IF(O158>18,VLOOKUP(O158,$A$155:$G$221,3,FALSE),Tablas!$C$155)),0) -> 0 | R158: =IF(O158>0,(IF(O158>18,VLOOKUP(O158,$A$155:$G$221,4,FALSE),Tablas!$D$155)),0) -> 0 | S158: =IF(O158>0,(IF(O158>18,VLOOKUP(O158,$A$155:$G$221,5,FALSE),Tablas!$E$155)),0) -> 0 | T158: =IF(O158>0,(IF(O158>18,VLOOKUP(O158,$A$155:$G$221,6,FALSE),Tablas!$F$155)),0) -> 0 | U158: =IF(O158>0,(IF(O158>18,VLOOKUP(O158,$A$155:$G$221,7,FALSE),Tablas!$G$155)),0) -> 0
A159: 22 | C159: 114175 | D159: 82787.5 | E159: 59575 | F159: 44487.5 | I159: 72825 | J159: 52712.5 | K159: 37887.5 | L159: 28412.5 | N159: 69183.75 | O159: ='INGRESO DE DATOS'!$L$19 -> 0 | P159: 4 | Q159: =IF(O159>0,(IF(O159>18,VLOOKUP(O159,$A$155:$G$221,3,FALSE),Tablas!$C$155)),0) -> 0 | R159: =IF(O159>0,(IF(O159>18,VLOOKUP(O159,$A$155:$G$221,4,FALSE),Tablas!$D$155)),0) -> 0 | S159: =IF(O159>0,(IF(O159>18,VLOOKUP(O159,$A$155:$G$221,5,FALSE),Tablas!$E$155)),0) -> 0 | T159: =IF(O159>0,(IF(O159>18,VLOOKUP(O159,$A$155:$G$221,6,FALSE),Tablas!$F$155)),0) -> 0 | U159: =IF(O159>0,(IF(O159>18,VLOOKUP(O159,$A$155:$G$221,7,FALSE),Tablas!$G$155)),0) -> 0
A160: 23 | C160: 118012.5 | D160: 85575 | E160: 61587.5 | F160: 45987.5 | I160: 75412.5 | J160: 54575 | K160: 39225 | L160: 29387.5 | N160: 71641.875 | O160: ='INGRESO DE DATOS'!$L$20 -> 0 | P160: 5 | Q160: =IF(O160>0,(IF(O160>18,VLOOKUP(O160,$A$155:$G$221,3,FALSE),Tablas!$C$155)),0) -> 0 | R160: =IF(O160>0,(IF(O160>18,VLOOKUP(O160,$A$155:$G$221,4,FALSE),Tablas!$D$155)),0) -> 0 | S160: =IF(O160>0,(IF(O160>18,VLOOKUP(O160,$A$155:$G$221,5,FALSE),Tablas!$E$155)),0) -> 0 | T160: =IF(O160>0,(IF(O160>18,VLOOKUP(O160,$A$155:$G$221,6,FALSE),Tablas!$F$155)),0) -> 0 | U160: =IF(O160>0,(IF(O160>18,VLOOKUP(O160,$A$155:$G$221,7,FALSE),Tablas!$G$155)),0) -> 0
A161: 24 | C161: 121987.5 | D161: 88450 | E161: 63662.5 | F161: 47537.5 | I161: 77900 | J161: 56375 | K161: 40512.5 | L161: 30350 | N161: 74005 | P161: Total | Q161: =SUM(Q156:Q160) -> 0 | R161: =SUM(R156:R160) -> 0 | S161: =SUM(S156:S160) -> 0 | T161: =SUM(T156:T160) -> 0 | U161: =SUM(U156:U160) -> 0
A162: 25 | C162: 123875 | D162: 89825 | E162: 64650 | F162: 48275 | I162: 79475 | J162: 57512.5 | K162: 41300 | L162: 30937.5 | N162: 75501.25
A163: 26 | C163: 128050 | D163: 92850 | E163: 66825 | F163: 49900 | I163: 82000 | J163: 59312.5 | K163: 42612.5 | L163: 31912.5 | N163: 77900
A164: 27 | C164: 132350 | D164: 95975 | E164: 69062.5 | F164: 51575 | I164: 84537.5 | J164: 61150 | K164: 43912.5 | L164: 32887.5 | N164: 80310.625
A165: 28 | C165: 136812.5 | D165: 99200 | E165: 71387.5 | F165: 53312.5 | I165: 87000 | J165: 62912.5 | K165: 45175 | L165: 33825 | N165: 82650
A166: 29 | C166: 141412.5 | D166: 102537.5 | E166: 73800 | F166: 55100 | I166: 90287.5 | J166: 65287.5 | K166: 46825 | L166: 35037.5 | N166: 85773.125
A167: 30 | C167: 146175 | D167: 105987.5 | E167: 76275 | F167: 56950 | I167: 93675 | J167: 67725 | K167: 48587.5 | L167: 36375 | N167: 88991.25
A168: 31 | C168: 151087.5 | D168: 109550 | E168: 78850 | F168: 58875 | I168: 97062.5 | J168: 70162.5 | K168: 50337.5 | L168: 37662.5 | N168: 92209.375
A169: 32 | C169: 156175 | D169: 113237.5 | E169: 81500 | F169: 60850 | I169: 100450 | J169: 72587.5 | K169: 52075 | L169: 38937.5 | N169: 95427.5
A170: 33 | C170: 161425 | D170: 117050 | E170: 84237.5 | F170: 62900 | I170: 102612.5 | J170: 74137.5 | K170: 53162.5 | L170: 39750 | N170: 97481.875
A171: 34 | C171: 167700 | D171: 121600 | E171: 87512.5 | F171: 65350 | I171: 104725 | J171: 75662.5 | K171: 54262.5 | L171: 40587.5 | N171: 99488.75
A172: 35 | C172: 170450 | D172: 123600 | E172: 88950 | F172: 66412.5 | I172: 106862.5 | J172: 77200 | K172: 55325 | L172: 41375 | N172: 101519.375
A173: 36 | C173: 173250 | D173: 125625 | E173: 90412.5 | F173: 67512.5 | I173: 109037.5 | J173: 78775 | K173: 56450 | L173: 42212.5 | N173: 103585.625
A174: 37 | C174: 176087.5 | D174: 127687.5 | E174: 91887.5 | F174: 68612.5 | I174: 111112.5 | J174: 80262.5 | K174: 57537.5 | L174: 43025 | N174: 105556.875
A175: 38 | C175: 178975 | D175: 129775 | E175: 93400 | F175: 69737.5 | I175: 113025 | J175: 81625 | K175: 58487.5 | L175: 43712.5 | N175: 107373.75
A176: 39 | C176: 181925 | D176: 131912.5 | E176: 94925 | F176: 70887.5 | I176: 115962.5 | J176: 83750 | K176: 60000 | L176: 44850 | N176: 110164.375
A177: 40 | C177: 184900 | D177: 134075 | E177: 96487.5 | F177: 72050 | I177: 117850 | J177: 85100 | K177: 61000 | L177: 45587.5 | N177: 111957.5
A178: 41 | C178: 187937.5 | D178: 136275 | E178: 98075 | F178: 73237.5 | I178: 119675 | J178: 86450 | K178: 61937.5 | L178: 46275 | N178: 113691.25
A179: 42 | C179: 191025 | D179: 138512.5 | E179: 99687.5 | F179: 74437.5 | I179: 121562.5 | J179: 87787.5 | K179: 62875 | L179: 47000 | N179: 115484.375
A180: 43 | C180: 194162.5 | D180: 140787.5 | E180: 101312.5 | F180: 75650 | I180: 123750 | J180: 89350 | K180: 64025 | L180: 47837.5 | N180: 117562.5
A181: 44 | C181: 197337.5 | D181: 143087.5 | E181: 102975 | F181: 76900 | I181: 126050 | J181: 90987.5 | K181: 65175 | L181: 48687.5 | N181: 119747.5
A182: 45 | C182: 200587.5 | D182: 145437.5 | E182: 104675 | F182: 78162.5 | I182: 128200 | J182: 92550 | K182: 66275 | L182: 49512.5 | N182: 121790
A183: 46 | C183: 203875 | D183: 147825 | E183: 106387.5 | F183: 79437.5 | I183: 130512.5 | J183: 94212.5 | K183: 67437.5 | L183: 50387.5 | N183: 123986.875
A184: 47 | C184: 210925 | D184: 152937.5 | E184: 110062.5 | F184: 82187.5 | I184: 132662.5 | J184: 95762.5 | K184: 68550 | L184: 51225 | N184: 126029.375
A185: 48 | C185: 214375 | D185: 155450 | E185: 111875 | F185: 83537.5 | I185: 135825 | J185: 98025 | K185: 71137.5 | L185: 53150 | N185: 129033.75
A186: 49 | C186: 219187.5 | D186: 158937.5 | E186: 114375 | F186: 85412.5 | I186: 139550 | J186: 100725 | K186: 73100 | L186: 54587.5 | N186: 132572.5
A187: 50 | C187: 227337.5 | D187: 164837.5 | E187: 118637.5 | F187: 88587.5 | I187: 143337.5 | J187: 103450 | K187: 75050 | L187: 56037.5 | N187: 136170.625
A188: 51 | C188: 235787.5 | D188: 170975 | E188: 123037.5 | F188: 91875 | I188: 147037.5 | J188: 106100 | K188: 76975 | L188: 57462.5 | N188: 139685.625
A189: 52 | C189: 240262.5 | D189: 174212.5 | E189: 125375 | F189: 93625 | I189: 152187.5 | J189: 109800 | K189: 79650 | L189: 59450 | N189: 144578.125
A190: 53 | C190: 249187.5 | D190: 180687.5 | E190: 130037.5 | F190: 97100 | I190: 160762.5 | J190: 115975 | K190: 84112.5 | L190: 62787.5 | N190: 152724.375
A191: 54 | C191: 267850 | D191: 194225 | E191: 139775 | F191: 104375 | I191: 170950 | J191: 123312.5 | K191: 89387.5 | L191: 66725 | N191: 162402.5
A192: 55 | C192: 282950 | D192: 205175 | E192: 147650 | F192: 110250 | I192: 179862.5 | J192: 129725 | K192: 94025 | L192: 70162.5 | N192: 170869.375
A193: 56 | C193: 293425 | D193: 212762.5 | E193: 153125 | F193: 114337.5 | I193: 187037.5 | J193: 134900 | K193: 97750 | L193: 72925 | N193: 177685.625
A194: 57 | C194: 312437.5 | D194: 226550 | E194: 163050 | F194: 121750 | I194: 196137.5 | J194: 141425 | K194: 102500 | L194: 76450 | N194: 186330.625
A195: 58 | C195: 332712.5 | D195: 241250 | E195: 173625 | F195: 129650 | I195: 210462.5 | J195: 151737.5 | K195: 109950 | L195: 82012.5 | N195: 199939.375
A196: 59 | C196: 357025 | D196: 258875 | E196: 186312.5 | F196: 139112.5 | I196: 225137.5 | J196: 162312.5 | K196: 117562.5 | L196: 87675 | N196: 213880.625
A197: 60 | C197: 379812.5 | D197: 275400 | E197: 198200 | F197: 148000 | I197: 240162.5 | J197: 173087.5 | K197: 125362.5 | L197: 93487.5 | N197: 228154.375
A198: 61 | C198: 404075 | D198: 292987.5 | E198: 210862.5 | F198: 157450 | I198: 255300 | J198: 183987.5 | K198: 133225 | L198: 99337.5 | N198: 242535
A199: 62 | C199: 429912.5 | D199: 311737.5 | E199: 224350 | F199: 167525 | I199: 270812.5 | J199: 195150 | K199: 141287.5 | L199: 105325 | N199: 257271.875
A200: 63 | C200: 461425 | D200: 334575 | E200: 240787.5 | F200: 179800 | I200: 293600 | J200: 211550 | K200: 153150 | L200: 114125 | N200: 278920
A201: 64 | C201: 501187.5 | D201: 363412.5 | E201: 261537.5 | F201: 195287.5 | I201: 319750 | J201: 230337.5 | K201: 166725 | L201: 124237.5 | N201: 303762.5
A202: 65 | C202: 538162.5 | D202: 390225 | E202: 280837.5 | F202: 209700 | I202: 340462.5 | J202: 245250 | K202: 177475 | L202: 132237.5 | N202: 323439.375
A203: 66 | C203: 572800 | D203: 415337.5 | E203: 298900 | F203: 223187.5 | I203: 361200 | J203: 260175 | K203: 188262.5 | L203: 140262.5 | N203: 343140
... 1352 more rows
